Workbook

Sheet Inputs
A1: CDOT Oil & Gas Impacts Calculator
A2: Created by Felsburg Holt & Ullevig for exclusive use by CDOT
A3: v1.2 | B3: Last updated on 3/2/2015
A4: Roadway Information
A6: SEGMENT: | B6: 1
A7: Q1. | B7: Name of the roadway:
A9: Q2. | B9: Start Mile Post:
A11: Q3. | B11: End Mile Post:
A13: Q4. | B13: CDOT Region: | G13: R1
A15: Q5. | B15: Functional Class: | G15: Interstate
A17: Q6. | B17: Urban or Rural?: | G17: Urban
A19: Q7. | B19: Mountains or Plains?: | G19: Plains
A21: Q8. | B21: Segment Length (miles): | G21: =ABS(G11-G9) -> 0 | H21: mi
A23: Q9. | B23: Surface Type: | G23: Asphalt
A25: Q10. | B25: Paved Width (feet, total of both directions): | H25: ft
A27: Q11. | B27: # of Through Lanes (total of both directions):
A29: Q12. | B29: Drivability Life (years remaining): | H29: years
A33: Bridge Information
A35: BRIDGE: | B35: 1
A36: Q1. | B36: Structure #:
A38: Q2. | B38: Facility Carried:
A40: Q3. | B40: Feature Intersected:
A42: Q4. | B42: Baseline Average Daily Truck Traffic (ADTT): | H42: trucks/day
A44: Q5. | B44: Bridge Width (feet): | H44: ft
A46: Q6. | B46: Bridge Length (feet): | H46: ft
A48: Deck -
A49: Q7. | B49: Deck Overlay Type: | G49: HMA/Membrane
A51: Joints -
A52: Q8. | B52: Bridge Joint Type: | G52: No Joints
A54: Q8a. | B54: # of Joints along Bridge:
A56: Q8b. | B56: Joint Skew (no skew = 0 deg): | G56: 0 | H56: deg
A58: Bearings -
A59: Q9. | B59: Bridge Bearing Type: | G59: No Bearings
A61: Q9a. | B61: # of Bearings:
A63: Replacement Bridge -
A64: Q10. | B64: Replacement Estimate Method: | G64: % Increase
A66: Q10a. | B66: % Increase in Replacement Bridge Area: | G66: 0 | H66: % | I66: (100% of the existing area will automatically be added)
A68: Q10a. | B68: Replacement Width: | G68: =G44 -> 0 | H68: ft
A70: Q10b. | B70: Replacement Length: | G70: =G46 -> 0 | H70: ft
A74: Activity Settings
A76: Q1. | B76: What is the type of development? | G76: Horizontal
A78: Q2. | B78: Is a pipeline providing fresh water? | G78: No
A80: Q3. | B80: # of DEVELOPING Pads and Wells to Analyze: | G80: Pad(s) | I80: Well(s)
B82: (wells are the total # across all pads) | G82: 1 | I82: 8
A84: Q3a. | B84: Anticipated # of years of production: | G84: 20 | H84: years
B85: (Leave at 20 if unsure)
A87: Q3b. | B87: Anticipated length of development (days): | G87: 30 | H87: days
B88: (Leave at 30 if unsure)
A90: Q4. | B90: # of EXISTING Pads and Wells to Analyze: | G90: Pad(s) | I90: Well(s)
B92: (wells are the total # across all pads)
A94: Q4a. | B94: Estimated # of years of production remaining: | H94: years
A96: Q5. | B96: What % of trip types will be using the facility?
B97: (Leave at 100% if unsure) | G97: %
A99: WORK | B99: Workers: | G99: 100 | H99: %
A100: EQUIP | B100: Construction equipment: | G100: 100 | H100: %
A101: RIG | B101: Drilling Rig & Support: | G101: 100 | H101: %
A102: PIPE | B102: Pipe: | G102: 100 | H102: %
A103: GRAV | B103: Gravel: | G103: 100 | H103: %
A104: CEM | B104: Cement: | G104: 100 | H104: %
A105: FUEL | B105: Fuel: | G105: 100 | H105: %
A106: CHEM | B106: Drilling Chemicals: | G106: 100 | H106: %
A107: SAND | B107: Sand: | G107: 100 | H107: %
A108: F-WATER | B108: Fresh Water: | G108: 100 | H108: %
A109: P-WATER | B109: Flowback Water Disposal: | G109: 100 | H109: %
A110: OIL | B110: Produced Oil: | G110: 100 | H110: %

Sheet Impacts
A1: CDOT Oil & Gas Impacts Calculator - Impact Report
A2: Created by Felsburg Holt & Ullevig for exclusive use by CDOT
A3: v1.2 | B3: Last updated on 3/2/2015
A4: Roadway Impacts
A5: ID | B5: Name | C5: Start MP | D5: End MP | E5: Length | F5: Surface | G5: Development Costs ($2014) | H5: Future Pad(s) Production Costs ($2014) / Year | I5: Existing Pad(s) Production Costs ($2014) / Year
A8: TOTAL: | E8: =SUM(E6:E7) -> 0 | G8: =SUM(G6:G7) -> 0 | H8: =SUM(H6:H7) -> 0 | I8: =SUM(I6:I7) -> 0
G9: Total over years of production: | H9: =H8*$D$38 -> 0 | I9: =I8*$E$38 -> 0
A11: Total additional roadway costs over life of pad(s): | E11: =G8+H9+I9 -> 0 | G11: ($2014)
A13: Bridge Impacts
A14: ID | B14: Structure # | C14: Facility Carried | E14: Feature Intersected | G14: Development Costs ($2014) | H14: Future Pad(s) Production Costs ($2014) / Year | I14: Existing Pad(s) Production Costs ($2014) / Year
A17: TOTAL: | G17: =SUM(G15:G16) -> 0 | H17: =SUM(H15:H16) -> 0 | I17: =SUM(I15:I16) -> 0
G18: Total over years of production: | H18: =H17*$D$38 -> 0 | I18: =I17*$E$38 -> 0
A20: Total additional bridge costs over life of pad(s): | E20: =G17+H18+I18 -> 0 | G20: ($2014)
A22: Total Impacts
G23: Total Development Costs ($2014) | H23: Total Future Pad(s) Production Costs ($2014) / Year | I23: Total Existing Pad(s) Production Costs ($2014) / Year
G24: =G8+G17 -> 0 | H24: =H8+H17 -> 0 | I24: =I8+I17 -> 0
G25: Total over years of production: | H25: =H9+H18 -> 0 | I25: =I9+I18 -> 0
A27: Total additional transportation costs over life of pad(s): | E27: =G24+H25+I25 -> 0 | G27: ($2014)
A29: Activity Settings & Totals
A31: Type of Activity: | D31: =Inputs!$G$76 -> Horizontal
C33: Pad(s): | D33: Future | E33: Existing
A34: Total Pad(s): | D34: =Inputs!$G$82 -> 1 | E34: =Inputs!$G$92 -> 0
A36: Total Well(s): | D36: =Inputs!$I$82 -> 8 | E36: =Inputs!$I$92 -> 0
A38: Years of Production: | D38: =Inputs!$G$84 -> 20 | E38: =Inputs!$G$94 -> 0
A40: Total One-Way Development Trips: | D40: =TruckDistribution!$L$163 -> 12370 | E40: *
A42: One-Way Production Trips (Annual): | D42: =TruckDistribution!$L$67 -> 560 | E42: =TruckDistribution!$L$75 -> 0 | F42: *
A44: Total One-Way Production Trips: | D44: =D42*D38 -> 11200 | E44: =E42*E38 -> 0 | F44: *
A46: * | B46: Trips may have been reduced (through user settings) based on estimated % of trip types using the facilities.
B47: See the "Inputs" tab for settings used.

Sheet Options (hidden)
A1: Lane Surface: | B1: Development Type: | C1: Roads: | D1: Bridges: | E1: CDOT: | F1: Loc: | G1: Functional Class: | H1: Topo: | I1: Deck Overlay: | J1: Joint Type: | K1: Bearing Type: | L1: Replacement: | M1: Pipeline:
A2: Asphalt | B2: Horizontal | C2: 1 | D2: 1 | E2: R1 | F2: Urban | G2: Interstate | H2: Plains | I2: HMA/Membrane | J2: No Joints | K2: No Bearings | L2: % Increase | M2: No
A3: Concrete | B3: Vertical | E3: R2 | F3: Rural | G3: Principal Arterial | H3: Mountains | I3: Polyester | J3: Plug Joint | K3: Type 1 | L3: Width/Length | M3: Yes
B4: Recompletion | E4: R3 | G4: Principal Arterial - Others | I4: No Overlay | J4: 0-4 inch | K4: Type 2
E5: R4 | G5: Minor Arterial | J5: Modular | K5: Type 3
E6: R5 | G6: Major Collector
G7: Minor Collector
G8: Local

Sheet TripGen (hidden)
A1: Horizontal
A2: Stage | B2: Phase | C2: Pad/Well | D2: Raw Trips | E2: Rounded Trips | F2: Total Trips
A3: Construction | B3: Pad and Road Construction | C3: Pad | D3: 87 | E3: =ROUNDUP(D3/2, 0)*2 -> 88 | F3: =IF(C3="Well", E3*Inputs!$I$82, E3*Inputs!$G$82) -> 88
A4: Drilling | B4: Drilling Rig | C4: Pad | D4: 67 | E4: =ROUNDUP(D4/2, 0)*2 -> 68 | F4: =IF(C4="Well", E4*Inputs!$I$82, E4*Inputs!$G$82) -> 68
B5: Drilling Fluid and Materials | C5: Well | D5: 79 | E5: 80 | F5: =IF(C5="Well", E5*Inputs!$I$82, E5*Inputs!$G$82) -> 640
B6: Drilling Equipment | C6: Well | D6: 65 | E6: =ROUNDDOWN(D6/2, 0)*2 -> 64 | F6: =IF(C6="Well", E6*Inputs!$I$82, E6*Inputs!$G$82) -> 512
A7: Completion | B7: Completion Rig | C7: Pad | D7: 33 | E7: =ROUNDDOWN(D7/2, 0)*2 -> 32 | F7: =IF(C7="Well", E7*Inputs!$I$82, E7*Inputs!$G$82) -> 32
B8: Completion Fluid and Materials | C8: Well | D8: 32 | E8: 32 | F8: =IF(C8="Well", E8*Inputs!$I$82, E8*Inputs!$G$82) -> 256
B9: Completion Equipment | C9: Pad | D9: 13 | E9: =ROUNDDOWN(D9/2, 0)*2 -> 12 | F9: =IF(C9="Well", E9*Inputs!$I$82, E9*Inputs!$G$82) -> 12
B10: Fracturing Equipment | C10: Pad | D10: 250 | E10: 250 | F10: =IF(C10="Well", E10*Inputs!$I$82, E10*Inputs!$G$82) -> 250
B11: Fracture Water | C11: Well | D11: 923 | E11: =ROUNDDOWN(D11/2, 0)*2 -> 922 | F11: =IF(C11="Well", E11*Inputs!$I$82, E11*Inputs!$G$82) -> 7376
B12: Fracture Sand | C12: Well | D12: 84 | E12: 84 | F12: =IF(C12="Well", E12*Inputs!$I$82, E12*Inputs!$G$82) -> 672
B13: Flowback Water Disposal | C13: Well | D13: 308 | E13: 308 | F13: =IF(C13="Well", E13*Inputs!$I$82, E13*Inputs!$G$82) -> 2464
A14: Total: | D14: =SUM(D3:D13) -> 1941 | E14: =SUM(E3:E13) -> 1940 | F14: =SUM(F3:F13) -> 12370
A15: Vertical
A16: Stage | B16: Phase | C16: Pad/Well | D16: Raw Trips | E16: Rounded Trips | F16: Total Trips
A17: Construction | B17: Pad and Road Construction | C17: Pad | D17: 63 | E17: =ROUND(D17/2, 0)*2 -> 64 | F17: =IF(C17="Well", E17*Inputs!$I$82, E17*Inputs!$G$82) -> 64
A18: Drilling | B18: Drilling Rig | C18: Pad | D18: 66 | E18: =ROUND(D18/2, 0)*2 -> 66 | F18: =IF(C18="Well", E18*Inputs!$I$82, E18*Inputs!$G$82) -> 66
B19: Drilling Fluid and Materials | C19: Well | D19: 45 | E19: =ROUNDDOWN(D19/2, 0)*2 -> 44 | F19: =IF(C19="Well", E19*Inputs!$I$82, E19*Inputs!$G$82) -> 352
B20: Drilling Equipment | C20: Well | D20: 59 | E20: =ROUND(D20/2, 0)*2 -> 60 | F20: =IF(C20="Well", E20*Inputs!$I$82, E20*Inputs!$G$82) -> 480
A21: Completion | B21: Completion Rig | C21: Pad | D21: 22 | E21: =ROUND(D21/2, 0)*2 -> 22 | F21: =IF(C21="Well", E21*Inputs!$I$82, E21*Inputs!$G$82) -> 22
B22: Completion Fluid and Materials | C22: Well | D22: 24 | E22: =ROUND(D22/2, 0)*2 -> 24 | F22: =IF(C22="Well", E22*Inputs!$I$82, E22*Inputs!$G$82) -> 192
B23: Completion Equipment | C23: Pad | D23: 8 | E23: =ROUND(D23/2, 0)*2 -> 8 | F23: =IF(C23="Well", E23*Inputs!$I$82, E23*Inputs!$G$82) -> 8
B24: Fracturing Equipment | C24: Pad | D24: 147 | E24: =ROUNDDOWN(D24/2, 0)*2 -> 146 | F24: =IF(C24="Well", E24*Inputs!$I$82, E24*Inputs!$G$82) -> 146
B25: Fracture Water | C25: Well | D25: 246 | E25: =ROUND(D25/2, 0)*2 -> 246 | F25: =IF(C25="Well", E25*Inputs!$I$82, E25*Inputs!$G$82) -> 1968
B26: Fracture Sand | C26: Well | D26: 15 | E26: =ROUND(D26/2, 0)*2 -> 16 | F26: =IF(C26="Well", E26*Inputs!$I$82, E26*Inputs!$G$82) -> 128
B27: Flowback Water Disposal | C27: Well | D27: 103 | E27: =ROUNDDOWN(D27/2, 0)*2 -> 102 | F27: =IF(C27="Well", E27*Inputs!$I$82, E27*Inputs!$G$82) -> 816
A28: Total: | D28: =SUM(D17:D27) -> 798 | E28: =SUM(E17:E27) -> 798 | F28: =SUM(F17:F27) -> 4242
A29: Vertical Recompletion
A30: Stage | B30: Phase | C30: Pad/Well | D30: Raw Trips | E30: Rounded Trips | F30: Total Trips
A31: Completion | B31: Completion Rig | C31: Pad | D31: 22 | E31: =ROUND(D31/2, 0)*2 -> 22 | F31: =IF(C31="Well", E31*Inputs!$I$82, E31*Inputs!$G$82) -> 22
B32: Completion Fluid and Materials | C32: Well | D32: 24 | E32: =ROUND(D32/2, 0)*2 -> 24 | F32: =IF(C32="Well", E32*Inputs!$I$82, E32*Inputs!$G$82) -> 192
B33: Completion Equipment | C33: Pad | D33: 8 | E33: =ROUND(D33/2, 0)*2 -> 8 | F33: =IF(C33="Well", E33*Inputs!$I$82, E33*Inputs!$G$82) -> 8
B34: Fracturing Equipment | C34: Pad | D34: 147 | E34: =ROUNDDOWN(D34/2, 0)*2 -> 146 | F34: =IF(C34="Well", E34*Inputs!$I$82, E34*Inputs!$G$82) -> 146
B35: Fracture Water | C35: Well | D35: 246 | E35: =ROUND(D35/2, 0)*2 -> 246 | F35: =IF(C35="Well", E35*Inputs!$I$82, E35*Inputs!$G$82) -> 1968
B36: Fracture Sand | C36: Well | D36: 15 | E36: =ROUND(D36/2, 0)*2 -> 16 | F36: =IF(C36="Well", E36*Inputs!$I$82, E36*Inputs!$G$82) -> 128
B37: Flowback Water Disposal | C37: Well | D37: 103 | E37: =ROUNDDOWN(D37/2, 0)*2 -> 102 | F37: =IF(C37="Well", E37*Inputs!$I$82, E37*Inputs!$G$82) -> 816
A38: Total: | D38: =SUM(D31:D37) -> 565 | E38: =SUM(E31:E37) -> 564 | F38: =SUM(F31:F37) -> 3280
A39: Production
A40: Production | B40: Production (Future Pads) | C40: Pad | D40: 560 | E40: 560 | F40: =IF(C40="Well", E40*Inputs!$I$82, E40*Inputs!$G$82) -> 560
B41: Production (Existing Pads) | C41: Pad | D41: 560 | E41: 560 | F41: =IF(C41="Well", E41*Inputs!$I$92, E41*Inputs!$G$92) -> 0
A43: *from BBC Consulting, as of 11/5/2014

Sheet TruckImpacts (hidden)
A1: Truck ID | B1: Group ID | C1: Name | D1: Empty/Full | E1: Dev Type | F1: Flexible | G1: Rigid
A2: Pad Construction
A3: PC1E | B3: EQUIP | C3: Construction Equipment Truck - EMPTY | D3: Empty | E3: Both | F3: 0.088 | G3: 0.091
A4: PC1F | B4: EQUIP | C4: Construction Equipment Truck - LOADED | D4: Full | E4: Both | F4: 1.021 | G4: 1.663
A5: PC2E | B5: GRAV | C5: Gravel Truck - EMPTY | D5: Empty | E5: Both | F5: 0.102 | G5: 0.105
A6: PC2F | B6: GRAV | C6: Gravel Truck - LOADED | D6: Full | E6: Both | F6: 1.565 | G6: 2.63
A7: PC3 | B7: WORK | C7: Pickup Truck | D7: Full | E7: Both | F7: 0.003 | G7: 0.003
A8: Development
A9: D1 | B9: RIG | C9: Generator House | D9: Full | E9: Both | F9: 3.872 | G9: 9.343
A10: D2 | B10: RIG | C10: Crown Section | D10: Full | E10: Both | F10: 8.246 | G10: 15.929
A11: D3 | B11: RIG | C11: Shaker Tank/Pit | D11: Full | E11: Both | F11: 2.557 | G11: 6.083
A12: D4 | B12: RIG | C12: Derrick | D12: Full | E12: Both | F12: 8.477 | G12: 18.481
A13: D5 | B13: RIG | C13: Suction Tank | D13: Full | E13: Both | F13: 2.773 | G13: 5.42
A14: D6 | B14: RIG | C14: VFD House | D14: Full | E14: Both | F14: 3.667 | G14: 8.037
A15: D7 | B15: RIG | C15: Mud Pump | D15: Full | E15: Both | F15: 5.504 | G15: 12.781
A16: D8 | B16: RIG | C16: Mud Boat | D16: Full | E16: Both | F16: 5.211 | G16: 11.345
A17: D9 | B17: RIG | C17: Shaker Skid | D17: Full | E17: Both | F17: 5.215 | G17: 11.383
A18: D10 | B18: RIG | C18: Substructure, etc. | D18: Full | E18: Both | F18: 9.013 | G18: 14.915
A19: D11 | B19: RIG | C19: Draw Works | D19: Full | E19: Both | F19: 6.325 | G19: 15.047
A20: D12 | B20: RIG | C20: Hydraulic Unit | D20: Full | E20: Both | F20: 3.989 | G20: 8.835
A21: D13 | B21: RIG | C21: Choke Manifold | D21: Full | E21: Both | F21: 6.264 | G21: 10.436
A22: D14 | B22: RIG | C22: MCC House | D22: Full | E22: Both | F22: 7.429 | G22: 16.708
A23: D15 | B23: RIG | C23: Tool Room / Junk Box | D23: Full | E23: Both | F23: 5.965 | G23: 13.566
A24: D16 | B24: RIG | C24: Screen House | D24: Full | E24: Both | F24: 2.623 | G24: 6.334
A25: D17 | B25: RIG | C25: Light Plant | D25: Full | E25: Both | F25: 3.34 | G25: 8.658
A26: D18 | B26: RIG | C26: Mud Tank | D26: Full | E26: Both | F26: 3.458 | G26: 6.777
A27: D19E | B27: CEM | C27: Cement Truck - EMPTY | D27: Empty | E27: Both | F27: 0.283 | G27: 0.267
A28: D19F | B28: CEM | C28: Cement Truck - LOADED | D28: Full | E28: Both | F28: 2.344 | G28: 3.565
A29: D20 | B29: CEM | C29: Cement Pump | D29: Full | E29: Both | F29: 1.52 | G29: 2.666
A30: D21 | B30: CHEM | C30: Acid Pump | D30: Full | E30: Horizontal | F30: 2.323 | G30: 4.054
A31: D22E | B31: CHEM | C31: Acid Tanker - EMPTY | D31: Empty | E31: Horizontal | F31: 0.109 | G31: 0.111
A32: D22F | B32: CHEM | C32: Acid Tanker - LOADED | D32: Full | E32: Horizontal | F32: 3.113 | G32: 5.567
A33: D23E | B33: PIPE | C33: Pipe - EMPTY | D33: Empty | E33: Both | F33: 0.088 | G33: 0.091
A34: D23F | B34: PIPE | C34: Pipe - LOADED | D34: Full | E34: Both | F34: 2.443 | G34: 4.281
A35: D24E | B35: FUEL | C35: Fuel Truck - EMPTY | D35: Empty | E35: Both | F35: 0.283 | G35: 0.267
A36: D24F | B36: FUEL | C36: Fuel Truck - LOADED | D36: Full | E36: Both | F36: 2.344 | G36: 3.565
A37: D25E | B37: F-WATER | C37: Water - EMPTY | D37: Empty | E37: Both | F37: 0.075 | G37: 0.078
A38: D25F1 | B38: F-WATER | C38: Fresh Water - LOADED | D38: Full | E38: Both | F38: 1.42 | G38: 2.403
A39: D25F2 | B39: P-WATER | C39: Produced Water - LOADED | D39: Full | E39: Both | F39: 3.113 | G39: 5.567
A40: D26 | B40: WORK | C40: Pickup Truck | D40: Full | E40: Both | F40: 0.003 | G40: 0.003
A41: Completion
A42: C1 | B42: RIG | C42: Workover Rig | D42: Full | E42: Both | F42: 5.776 | G42: 13.392
A43: C2E | B43: F-WATER | C43: Water - EMPTY | D43: Empty | E43: Horizontal | F43: 0.075 | G43: 0.078
A44: C2F1 | B44: F-WATER | C44: Fresh Water - LOADED | D44: Full | E44: Horizontal | F44: 1.42 | G44: 2.403
A45: C2F2 | B45: P-WATER | C45: Produced Water - LOADED | D45: Full | E45: Horizontal | F45: 3.113 | G45: 5.567
A46: C3E | B46: SAND | C46: Sand Truck - EMPTY | D46: Empty | E46: Horizontal | F46: 0.105 | G46: 0.171
A47: C3F | B47: SAND | C47: Sand Truck - LOADED | D47: Full | E47: Horizontal | F47: 2.547 | G47: 4.537
A48: C4E | B48: PIPE | C48: Pipe - EMPTY | D48: Empty | E48: Both | F48: 0.088 | G48: 0.091
A49: C4F | B49: PIPE | C49: Pipe - LOADED | D49: Full | E49: Both | F49: 2.443 | G49: 4.281
A50: C5 | B50: RIG | C50: Wireline | D50: Full | E50: Both | F50: 2.344 | G50: 3.565
A51: C6E | B51: CHEM | C51: Chemical Truck - EMPTY | D51: Empty | E51: Both | F51: 0.283 | G51: 0.267
A52: C6F | B52: CHEM | C52: Chemical Truck - LOADED | D52: Full | E52: Both | F52: 2.344 | G52: 3.565
A53: C7E | B53: RIG | C53: Frac Tank - EMPTY | D53: Empty | E53: Horizontal | F53: 0.089 | G53: 0.084
A54: C7F | B54: RIG | C54: Frac Tank - LOADED | D54: Full | E54: Horizontal | F54: 0.097 | G54: 0.095
A55: C8 | B55: F-WATER | C55: Pump Truck | D55: Full | E55: Both | F55: 1.433 | G55: 2.611
A56: C9 | B56: RIG | C56: Control Van | D56: Full | E56: Both | F56: 0.442 | G56: 0.624
A57: C10E | B57: FUEL | C57: Fuel Truck - EMPTY | D57: Empty | E57: Both | F57: 0.283 | G57: 0.267
A58: C10F | B58: FUEL | C58: Fuel Truck - LOADED | D58: Full | E58: Both | F58: 2.344 | G58: 3.565
A59: C11 | B59: WORK | C59: Pickup Truck | D59: Full | E59: Both | F59: 0.003 | G59: 0.003
A60: C12 | B60: CHEM | C60: Acid Pump | D60: Full | E60: Horizontal | F60: 2.323 | G60: 4.054
A61: Production
A62: P1F | B62: OIL | C62: Oil - LOADED | D62: Full | E62: Both | F62: 2.443 | G62: 4.281
A63: P1E | B63: OIL | C63: Oil - Empty | D63: Empty | E63: Both | F63: 0.75 | G63: 0.78
A64: P2E | B64: F-WATER | C64: Water - EMPTY | D64: Empty | E64: Horizontal | F64: 0.75 | G64: 0.78
A65: P2F | B65: P-WATER | C65: Produced Water - LOADED | D65: Full | E65: Horizontal | F65: 3.113 | G65: 5.567
A66: P3 | B66: WORK | C66: Pickup Truck | D66: Full | E66: Both | F66: 0.003 | G66: 0.003

Sheet TruckDistribution (hidden)
A1: Stage | B1: Phase | C1: Trips | D1: Truck ID | E1: Group ID | F1: Truck Name | G1: Dir | H1: Base | I1: % Phase | J1: Overall | K1: % Rd | L1: Mod | M1: Flexible ESALs | N1: Rigid ESALs
A2: Construction (Horizontal) | B2: Pad and Road Construction | C2: =TripGen!F3 -> 88 | D2: =TruckImpacts!A$3 -> PC1E | E2: =TruckImpacts!B$3 -> EQUIP | F2: =TruckImpacts!C$3 -> Construction Equipment Truck - EMPTY | G2: Both | H2: 8 | I2: 0.09090909091 | J2: =I2*C$2 -> 8 | K2: =SUMIF(Inputs!$A$99:$A$109, E2, Inputs!$G$99:$G$109)/100 -> 1 | L2: =ROUND(J2*K2, 0) -> 8 | M2: =SUMIF(TruckImpacts!$A:$A, $D2, TruckImpacts!F:F)*$L2 -> 0.704 | N2: =SUMIF(TruckImpacts!$A:$A, $D2, TruckImpacts!G:G)*$L2 -> 0.728
D3: =TruckImpacts!A$4 -> PC1F | E3: =TruckImpacts!B$4 -> EQUIP | F3: =TruckImpacts!C$4 -> Construction Equipment Truck - LOADED | G3: Both | H3: 8 | I3: 0.09090909091 | J3: =I3*C$2 -> 8 | K3: =SUMIF(Inputs!$A$99:$A$109, E3, Inputs!$G$99:$G$109)/100 -> 1 | L3: =ROUND(J3*K3, 0) -> 8 | M3: =SUMIF(TruckImpacts!$A:$A, $D3, TruckImpacts!F:F)*$L3 -> 8.168 | N3: =SUMIF(TruckImpacts!$A:$A, $D3, TruckImpacts!G:G)*$L3 -> 13.304
D4: =TruckImpacts!A$5 -> PC2E | E4: =TruckImpacts!B$5 -> GRAV | F4: =TruckImpacts!C$5 -> Gravel Truck - EMPTY | G4: Out | H4: 20 | I4: 0.2272727273 | J4: 20 | K4: =SUMIF(Inputs!$A$99:$A$109, E4, Inputs!$G$99:$G$109)/100 -> 1 | L4: 20 | M4: =SUMIF(TruckImpacts!$A:$A, $D4, TruckImpacts!F:F)*$L4 -> 2.04 | N4: =SUMIF(TruckImpacts!$A:$A, $D4, TruckImpacts!G:G)*$L4 -> 2.1
D5: =TruckImpacts!A$6 -> PC2F | E5: =TruckImpacts!B$6 -> GRAV | F5: =TruckImpacts!C$6 -> Gravel Truck - LOADED | G5: In | H5: 20 | I5: 0.2272727273 | J5: 20 | K5: =SUMIF(Inputs!$A$99:$A$109, E5, Inputs!$G$99:$G$109)/100 -> 1 | L5: 20 | M5: =SUMIF(TruckImpacts!$A:$A, $D5, TruckImpacts!F:F)*$L5 -> 31.3 | N5: =SUMIF(TruckImpacts!$A:$A, $D5, TruckImpacts!G:G)*$L5 -> 52.6
D6: =TruckImpacts!A$7 -> PC3 | E6: =TruckImpacts!B$7 -> WORK | F6: =TruckImpacts!C$7 -> Pickup Truck | G6: Both | H6: 32 | I6: 0.3636363636 | J6: 32 | K6: =SUMIF(Inputs!$A$99:$A$109, E6, Inputs!$G$99:$G$109)/100 -> 1 | L6: 32 | M6: =SUMIF(TruckImpacts!$A:$A, $D6, TruckImpacts!F:F)*$L6 -> 0.096 | N6: =SUMIF(TruckImpacts!$A:$A, $D6, TruckImpacts!G:G)*$L6 -> 0.096
A7: Drilling (Horizontal) | B7: Drilling Rig | C7: =TripGen!F4 -> 68 | D7: =TruckImpacts!A$9 -> D1 | E7: =TruckImpacts!B$9 -> RIG | F7: =TruckImpacts!C$9 -> Generator House | G7: Both | H7: 6 | I7: 0.08823529412 | J7: =I7*C$7 -> 6 | K7: =SUMIF(Inputs!$A$99:$A$109, E7, Inputs!$G$99:$G$109)/100 -> 1 | L7: 6 | M7: =SUMIF(TruckImpacts!$A:$A, $D7, TruckImpacts!F:F)*$L7 -> 23.232 | N7: =SUMIF(TruckImpacts!$A:$A, $D7, TruckImpacts!G:G)*$L7 -> 56.058
D8: =TruckImpacts!A$10 -> D2 | E8: =TruckImpacts!B$10 -> RIG | F8: =TruckImpacts!C$10 -> Crown Section | G8: Both | H8: 2 | I8: 0.02941176471 | J8: =I8*C$7 -> 2 | K8: =SUMIF(Inputs!$A$99:$A$109, E8, Inputs!$G$99:$G$109)/100 -> 1 | L8: 2 | M8: =SUMIF(TruckImpacts!$A:$A, $D8, TruckImpacts!F:F)*$L8 -> 16.492 | N8: =SUMIF(TruckImpacts!$A:$A, $D8, TruckImpacts!G:G)*$L8 -> 31.858
D9: =TruckImpacts!A$11 -> D3 | E9: =TruckImpacts!B$11 -> RIG | F9: =TruckImpacts!C$11 -> Shaker Tank/Pit | G9: Both | H9: 2 | I9: 0.02941176471 | J9: 2 | K9: =SUMIF(Inputs!$A$99:$A$109, E9, Inputs!$G$99:$G$109)/100 -> 1 | L9: 2 | M9: =SUMIF(TruckImpacts!$A:$A, $D9, TruckImpacts!F:F)*$L9 -> 5.114 | N9: =SUMIF(TruckImpacts!$A:$A, $D9, TruckImpacts!G:G)*$L9 -> 12.166
D10: =TruckImpacts!A$12 -> D4 | E10: =TruckImpacts!B$12 -> RIG | F10: =TruckImpacts!C$12 -> Derrick | G10: Both | H10: 2 | I10: 0.02941176471 | J10: 2 | K10: =SUMIF(Inputs!$A$99:$A$109, E10, Inputs!$G$99:$G$109)/100 -> 1 | L10: 2 | M10: =SUMIF(TruckImpacts!$A:$A, $D10, TruckImpacts!F:F)*$L10 -> 16.954 | N10: =SUMIF(TruckImpacts!$A:$A, $D10, TruckImpacts!G:G)*$L10 -> 36.962
D11: =TruckImpacts!A$13 -> D5 | E11: =TruckImpacts!B$13 -> RIG | F11: =TruckImpacts!C$13 -> Suction Tank | G11: Both | H11: 2 | I11: 0.02941176471 | J11: 2 | K11: =SUMIF(Inputs!$A$99:$A$109, E11, Inputs!$G$99:$G$109)/100 -> 1 | L11: 2 | M11: =SUMIF(TruckImpacts!$A:$A, $D11, TruckImpacts!F:F)*$L11 -> 5.546 | N11: =SUMIF(TruckImpacts!$A:$A, $D11, TruckImpacts!G:G)*$L11 -> 10.84
D12: =TruckImpacts!A$14 -> D6 | E12: =TruckImpacts!B$14 -> RIG | F12: =TruckImpacts!C$14 -> VFD House | G12: Both | H12: 2 | I12: 0.02941176471 | J12: 2 | K12: =SUMIF(Inputs!$A$99:$A$109, E12, Inputs!$G$99:$G$109)/100 -> 1 | L12: 2 | M12: =SUMIF(TruckImpacts!$A:$A, $D12, TruckImpacts!F:F)*$L12 -> 7.334 | N12: =SUMIF(TruckImpacts!$A:$A, $D12, TruckImpacts!G:G)*$L12 -> 16.074
D13: =TruckImpacts!A$15 -> D7 | E13: =TruckImpacts!B$15 -> RIG | F13: =TruckImpacts!C$15 -> Mud Pump | G13: Both | H13: 4 | I13: 0.05882352941 | J13: 4 | K13: =SUMIF(Inputs!$A$99:$A$109, E13, Inputs!$G$99:$G$109)/100 -> 1 | L13: 4 | M13: =SUMIF(TruckImpacts!$A:$A, $D13, TruckImpacts!F:F)*$L13 -> 22.016 | N13: =SUMIF(TruckImpacts!$A:$A, $D13, TruckImpacts!G:G)*$L13 -> 51.124
D14: =TruckImpacts!A$16 -> D8 | E14: =TruckImpacts!B$16 -> RIG | F14: =TruckImpacts!C$16 -> Mud Boat | G14: Both | H14: 2 | I14: 0.02941176471 | J14: 2 | K14: =SUMIF(Inputs!$A$99:$A$109, E14, Inputs!$G$99:$G$109)/100 -> 1 | L14: 2 | M14: =SUMIF(TruckImpacts!$A:$A, $D14, TruckImpacts!F:F)*$L14 -> 10.422 | N14: =SUMIF(TruckImpacts!$A:$A, $D14, TruckImpacts!G:G)*$L14 -> 22.69
D15: =TruckImpacts!A$17 -> D9 | E15: =TruckImpacts!B$17 -> RIG | F15: =TruckImpacts!C$17 -> Shaker Skid | G15: Both | H15: 2 | I15: 0.02941176471 | J15: 2 | K15: =SUMIF(Inputs!$A$99:$A$109, E15, Inputs!$G$99:$G$109)/100 -> 1 | L15: 2 | M15: =SUMIF(TruckImpacts!$A:$A, $D15, TruckImpacts!F:F)*$L15 -> 10.43 | N15: =SUMIF(TruckImpacts!$A:$A, $D15, TruckImpacts!G:G)*$L15 -> 22.766
D16: =TruckImpacts!A$18 -> D10 | E16: =TruckImpacts!B$18 -> RIG | F16: =TruckImpacts!C$18 -> Substructure, etc. | G16: Both | H16: 10 | I16: 0.1470588235 | J16: 10 | K16: =SUMIF(Inputs!$A$99:$A$109, E16, Inputs!$G$99:$G$109)/100 -> 1 | L16: 10 | M16: =SUMIF(TruckImpacts!$A:$A, $D16, TruckImpacts!F:F)*$L16 -> 90.13 | N16: =SUMIF(TruckImpacts!$A:$A, $D16, TruckImpacts!G:G)*$L16 -> 149.15
D17: =TruckImpacts!A$19 -> D11 | E17: =TruckImpacts!B$19 -> RIG | F17: =TruckImpacts!C$19 -> Draw Works | G17: Both | H17: 2 | I17: 0.02941176471 | J17: 2 | K17: =SUMIF(Inputs!$A$99:$A$109, E17, Inputs!$G$99:$G$109)/100 -> 1 | L17: 2 | M17: =SUMIF(TruckImpacts!$A:$A, $D17, TruckImpacts!F:F)*$L17 -> 12.65 | N17: =SUMIF(TruckImpacts!$A:$A, $D17, TruckImpacts!G:G)*$L17 -> 30.094
D18: =TruckImpacts!A$20 -> D12 | E18: =TruckImpacts!B$20 -> RIG | F18: =TruckImpacts!C$20 -> Hydraulic Unit | G18: Both | H18: 2 | I18: 0.02941176471 | J18: 2 | K18: =SUMIF(Inputs!$A$99:$A$109, E18, Inputs!$G$99:$G$109)/100 -> 1 | L18: 2 | M18: =SUMIF(TruckImpacts!$A:$A, $D18, TruckImpacts!F:F)*$L18 -> 7.978 | N18: =SUMIF(TruckImpacts!$A:$A, $D18, TruckImpacts!G:G)*$L18 -> 17.67
D19: =TruckImpacts!A$21 -> D13 | E19: =TruckImpacts!B$21 -> RIG | F19: =TruckImpacts!C$21 -> Choke Manifold | G19: Both | H19: 2 | I19: 0.02941176471 | J19: 2 | K19: =SUMIF(Inputs!$A$99:$A$109, E19, Inputs!$G$99:$G$109)/100 -> 1 | L19: 2 | M19: =SUMIF(TruckImpacts!$A:$A, $D19, TruckImpacts!F:F)*$L19 -> 12.528 | N19: =SUMIF(TruckImpacts!$A:$A, $D19, TruckImpacts!G:G)*$L19 -> 20.872
D20: =TruckImpacts!A$22 -> D14 | E20: =TruckImpacts!B$22 -> RIG | F20: =TruckImpacts!C$22 -> MCC House | G20: Both | H20: 2 | I20: 0.02941176471 | J20: 2 | K20: =SUMIF(Inputs!$A$99:$A$109, E20, Inputs!$G$99:$G$109)/100 -> 1 | L20: 2 | M20: =SUMIF(TruckImpacts!$A:$A, $D20, TruckImpacts!F:F)*$L20 -> 14.858 | N20: =SUMIF(TruckImpacts!$A:$A, $D20, TruckImpacts!G:G)*$L20 -> 33.416
D21: =TruckImpacts!A$23 -> D15 | E21: =TruckImpacts!B$23 -> RIG | F21: =TruckImpacts!C$23 -> Tool Room / Junk Box | G21: Both | H21: 2 | I21: 0.02941176471 | J21: 2 | K21: =SUMIF(Inputs!$A$99:$A$109, E21, Inputs!$G$99:$G$109)/100 -> 1 | L21: 2 | M21: =SUMIF(TruckImpacts!$A:$A, $D21, TruckImpacts!F:F)*$L21 -> 11.93 | N21: =SUMIF(TruckImpacts!$A:$A, $D21, TruckImpacts!G:G)*$L21 -> 27.132
D22: =TruckImpacts!A$24 -> D16 | E22: =TruckImpacts!B$24 -> RIG | F22: =TruckImpacts!C$24 -> Screen House | G22: Both | H22: 2 | I22: 0.02941176471 | J22: 2 | K22: =SUMIF(Inputs!$A$99:$A$109, E22, Inputs!$G$99:$G$109)/100 -> 1 | L22: 2 | M22: =SUMIF(TruckImpacts!$A:$A, $D22, TruckImpacts!F:F)*$L22 -> 5.246 | N22: =SUMIF(TruckImpacts!$A:$A, $D22, TruckImpacts!G:G)*$L22 -> 12.668
D23: =TruckImpacts!A$25 -> D17 | E23: =TruckImpacts!B$25 -> RIG | F23: =TruckImpacts!C$25 -> Light Plant | G23: Both | H23: 2 | I23: 0.02941176471 | J23: 2 | K23: =SUMIF(Inputs!$A$99:$A$109, E23, Inputs!$G$99:$G$109)/100 -> 1 | L23: 2 | M23: =SUMIF(TruckImpacts!$A:$A, $D23, TruckImpacts!F:F)*$L23 -> 6.68 | N23: =SUMIF(TruckImpacts!$A:$A, $D23, TruckImpacts!G:G)*$L23 -> 17.316
D24: =TruckImpacts!A$26 -> D18 | E24: =TruckImpacts!B$26 -> RIG | F24: =TruckImpacts!C$26 -> Mud Tank | G24: Both | H24: 2 | I24: 0.02941176471 | J24: 2 | K24: =SUMIF(Inputs!$A$99:$A$109, E24, Inputs!$G$99:$G$109)/100 -> 1 | L24: 2 | M24: =SUMIF(TruckImpacts!$A:$A, $D24, TruckImpacts!F:F)*$L24 -> 6.916 | N24: =SUMIF(TruckImpacts!$A:$A, $D24, TruckImpacts!G:G)*$L24 -> 13.554
D25: =TruckImpacts!A$40 -> D26 | E25: =TruckImpacts!B$40 -> WORK | F25: =TruckImpacts!C$40 -> Pickup Truck | G25: Both | H25: 18 | I25: 0.2647058824 | J25: 18 | K25: =SUMIF(Inputs!$A$99:$A$109, E25, Inputs!$G$99:$G$109)/100 -> 1 | L25: 18 | M25: =SUMIF(TruckImpacts!$A:$A, $D25, TruckImpacts!F:F)*$L25 -> 0.054 | N25: =SUMIF(TruckImpacts!$A:$A, $D25, TruckImpacts!G:G)*$L25 -> 0.054
B26: Drilling Fluid and Materials | C26: =TripGen!F5 -> 640 | D26: =TruckImpacts!A$27 -> D19E | E26: =TruckImpacts!B$27 -> CEM | F26: =TruckImpacts!C$27 -> Cement Truck - EMPTY | G26: Out | H26: 9 | I26: 0.1125 | J26: =I26*C$26 -> 72 | K26: =SUMIF(Inputs!$A$99:$A$109, E26, Inputs!$G$99:$G$109)/100 -> 1 | L26: 72 | M26: =SUMIF(TruckImpacts!$A:$A, $D26, TruckImpacts!F:F)*$L26 -> 20.376 | N26: =SUMIF(TruckImpacts!$A:$A, $D26, TruckImpacts!G:G)*$L26 -> 19.224
D27: =TruckImpacts!A$28 -> D19F | E27: =TruckImpacts!B$28 -> CEM | F27: =TruckImpacts!C$28 -> Cement Truck - LOADED | G27: In | H27: 9 | I27: 0.1125 | J27: =I27*C$26 -> 72 | K27: =SUMIF(Inputs!$A$99:$A$109, E27, Inputs!$G$99:$G$109)/100 -> 1 | L27: 72 | M27: =SUMIF(TruckImpacts!$A:$A, $D27, TruckImpacts!F:F)*$L27 -> 168.768 | N27: =SUMIF(TruckImpacts!$A:$A, $D27, TruckImpacts!G:G)*$L27 -> 256.68
D28: =TruckImpacts!A$31 -> D22E | E28: =TruckImpacts!B$31 -> CHEM | F28: =TruckImpacts!C$31 -> Acid Tanker - EMPTY | G28: Out | H28: 5 | I28: 0.0625 | J28: 40 | K28: =SUMIF(Inputs!$A$99:$A$109, E28, Inputs!$G$99:$G$109)/100 -> 1 | L28: 40 | M28: =SUMIF(TruckImpacts!$A:$A, $D28, TruckImpacts!F:F)*$L28 -> 4.36 | N28: =SUMIF(TruckImpacts!$A:$A, $D28, TruckImpacts!G:G)*$L28 -> 4.44
D29: =TruckImpacts!A$32 -> D22F | E29: =TruckImpacts!B$32 -> CHEM | F29: =TruckImpacts!C$32 -> Acid Tanker - LOADED | G29: In | H29: 5 | I29: 0.0625 | J29: 40 | K29: =SUMIF(Inputs!$A$99:$A$109, E29, Inputs!$G$99:$G$109)/100 -> 1 | L29: 40 | M29: =SUMIF(TruckImpacts!$A:$A, $D29, TruckImpacts!F:F)*$L29 -> 124.52 | N29: =SUMIF(TruckImpacts!$A:$A, $D29, TruckImpacts!G:G)*$L29 -> 222.68
D30: =TruckImpacts!A$37 -> D25E | E30: =TruckImpacts!B$37 -> F-WATER | F30: =TruckImpacts!C$37 -> Water - EMPTY | G30: Both | H30: =SUM(H31:H32) -> 26 | I30: =SUM(I31:I32) -> 0.325 | J30: =SUM(J31:J32) -> 208 | L30: =SUM(L31:L32) -> 208 | M30: =SUMIF(TruckImpacts!$A:$A, $D30, TruckImpacts!F:F)*$L30 -> 15.6 | N30: =SUMIF(TruckImpacts!$A:$A, $D30, TruckImpacts!G:G)*$L30 -> 16.224
D31: =TruckImpacts!A$38 -> D25F1 | E31: =TruckImpacts!B$38 -> F-WATER | F31: =TruckImpacts!C$38 -> Fresh Water - LOADED | G31: In | H31: 13 | I31: 0.1625 | J31: 104 | K31: =(SUMIF(Inputs!$A$99:$A$109, E31, Inputs!$G$99:$G$109)/100)*IF(Inputs!$G$78="Yes", 0, 1) -> 1 | L31: 104 | M31: =SUMIF(TruckImpacts!$A:$A, $D31, TruckImpacts!F:F)*$L31 -> 147.68 | N31: =SUMIF(TruckImpacts!$A:$A, $D31, TruckImpacts!G:G)*$L31 -> 249.912
D32: =TruckImpacts!A$39 -> D25F2 | E32: =TruckImpacts!B$39 -> P-WATER | F32: =TruckImpacts!C$39 -> Produced Water - LOADED | G32: Out | H32: 13 | I32: 0.1625 | J32: 104 | K32: =SUMIF(Inputs!$A$99:$A$109, E32, Inputs!$G$99:$G$109)/100 -> 1 | L32: 104 | M32: =SUMIF(TruckImpacts!$A:$A, $D32, TruckImpacts!F:F)*$L32 -> 323.752 | N32: =SUMIF(TruckImpacts!$A:$A, $D32, TruckImpacts!G:G)*$L32 -> 578.968
B33: Drilling Equipment | C33: =TripGen!F6 -> 512 | D33: =TruckImpacts!A$29 -> D20 | E33: =TruckImpacts!B$29 -> CEM | F33: =TruckImpacts!C$29 -> Cement Pump | G33: Both | H33: 14 | I33: 0.21875 | J33: =I33*C$33 -> 112 | K33: =SUMIF(Inputs!$A$99:$A$109, E33, Inputs!$G$99:$G$109)/100 -> 1 | L33: 112 | M33: =SUMIF(TruckImpacts!$A:$A, $D33, TruckImpacts!F:F)*$L33 -> 170.24 | N33: =SUMIF(TruckImpacts!$A:$A, $D33, TruckImpacts!G:G)*$L33 -> 298.592
D34: =TruckImpacts!A$30 -> D21 | E34: =TruckImpacts!B$30 -> CHEM | F34: =TruckImpacts!C$30 -> Acid Pump | G34: Both | H34: 4 | I34: 0.0625 | J34: =I34*C$33 -> 32 | K34: =SUMIF(Inputs!$A$99:$A$109, E34, Inputs!$G$99:$G$109)/100 -> 1 | L34: 32 | M34: =SUMIF(TruckImpacts!$A:$A, $D34, TruckImpacts!F:F)*$L34 -> 74.336 | N34: =SUMIF(TruckImpacts!$A:$A, $D34, TruckImpacts!G:G)*$L34 -> 129.728
D35: =TruckImpacts!A$35 -> D24E | E35: =TruckImpacts!B$35 -> FUEL | F35: =TruckImpacts!C$35 -> Fuel Truck - EMPTY | G35: Out | H35: 8 | I35: 0.125 | J35: 64 | K35: =SUMIF(Inputs!$A$99:$A$109, E35, Inputs!$G$99:$G$109)/100 -> 1 | L35: 64 | M35: =SUMIF(TruckImpacts!$A:$A, $D35, TruckImpacts!F:F)*$L35 -> 18.112 | N35: =SUMIF(TruckImpacts!$A:$A, $D35, TruckImpacts!G:G)*$L35 -> 17.088
D36: =TruckImpacts!A$36 -> D24F | E36: =TruckImpacts!B$36 -> FUEL | F36: =TruckImpacts!C$36 -> Fuel Truck - LOADED | G36: In | H36: 8 | I36: 0.125 | J36: 64 | K36: =SUMIF(Inputs!$A$99:$A$109, E36, Inputs!$G$99:$G$109)/100 -> 1 | L36: 64 | M36: =SUMIF(TruckImpacts!$A:$A, $D36, TruckImpacts!F:F)*$L36 -> 150.016 | N36: =SUMIF(TruckImpacts!$A:$A, $D36, TruckImpacts!G:G)*$L36 -> 228.16
D37: =TruckImpacts!A$33 -> D23E | E37: =TruckImpacts!B$33 -> PIPE | F37: =TruckImpacts!C$33 -> Pipe - EMPTY | G37: Out | H37: 15 | I37: 0.234375 | J37: 120 | K37: =SUMIF(Inputs!$A$99:$A$109, E37, Inputs!$G$99:$G$109)/100 -> 1 | L37: 120 | M37: =SUMIF(TruckImpacts!$A:$A, $D37, TruckImpacts!F:F)*$L37 -> 10.56 | N37: =SUMIF(TruckImpacts!$A:$A, $D37, TruckImpacts!G:G)*$L37 -> 10.92
D38: =TruckImpacts!A$34 -> D23F | E38: =TruckImpacts!B$34 -> PIPE | F38: =TruckImpacts!C$34 -> Pipe - LOADED | G38: In | H38: 15 | I38: 0.234375 | J38: 120 | K38: =SUMIF(Inputs!$A$99:$A$109, E38, Inputs!$G$99:$G$109)/100 -> 1 | L38: 120 | M38: =SUMIF(TruckImpacts!$A:$A, $D38, TruckImpacts!F:F)*$L38 -> 293.16 | N38: =SUMIF(TruckImpacts!$A:$A, $D38, TruckImpacts!G:G)*$L38 -> 513.72
A39: Completion (Horizontal) | B39: Completion Rig | C39: =TripGen!F7 -> 32 | D39: =TruckImpacts!A$42 -> C1 | E39: =TruckImpacts!B$42 -> RIG | F39: =TruckImpacts!C$42 -> Workover Rig | G39: Both | H39: 6 | I39: 0.1875 | J39: =I39*C39 -> 6 | K39: =SUMIF(Inputs!$A$99:$A$109, E39, Inputs!$G$99:$G$109)/100 -> 1 | L39: 6 | M39: =SUMIF(TruckImpacts!$A:$A, $D39, TruckImpacts!F:F)*$L39 -> 34.656 | N39: =SUMIF(TruckImpacts!$A:$A, $D39, TruckImpacts!G:G)*$L39 -> 80.352
D40: =TruckImpacts!A$59 -> C11 | E40: =TruckImpacts!B$59 -> WORK | F40: =TruckImpacts!C$59 -> Pickup Truck | G40: Both | H40: 26 | I40: 0.8125 | J40: =I40*C39 -> 26 | K40: =SUMIF(Inputs!$A$99:$A$109, E40, Inputs!$G$99:$G$109)/100 -> 1 | L40: 26 | M40: =SUMIF(TruckImpacts!$A:$A, $D40, TruckImpacts!F:F)*$L40 -> 0.078 | N40: =SUMIF(TruckImpacts!$A:$A, $D40, TruckImpacts!G:G)*$L40 -> 0.078
B41: Completion Fluid and Materials | C41: =TripGen!F8 -> 256 | D41: =TruckImpacts!A$51 -> C6E | E41: =TruckImpacts!B$51 -> CHEM | F41: =TruckImpacts!C$51 -> Chemical Truck - EMPTY | G41: Out | H41: 10 | I41: 0.3125 | J41: =I41*C$41 -> 80 | K41: =SUMIF(Inputs!$A$99:$A$109, E41, Inputs!$G$99:$G$109)/100 -> 1 | L41: 80 | M41: =SUMIF(TruckImpacts!$A:$A, $D41, TruckImpacts!F:F)*$L41 -> 22.64 | N41: =SUMIF(TruckImpacts!$A:$A, $D41, TruckImpacts!G:G)*$L41 -> 21.36
D42: =TruckImpacts!A$52 -> C6F | E42: =TruckImpacts!B$52 -> CHEM | F42: =TruckImpacts!C$52 -> Chemical Truck - LOADED | G42: In | H42: 10 | I42: 0.3125 | J42: =I42*C$41 -> 80 | K42: =SUMIF(Inputs!$A$99:$A$109, E42, Inputs!$G$99:$G$109)/100 -> 1 | L42: 80 | M42: =SUMIF(TruckImpacts!$A:$A, $D42, TruckImpacts!F:F)*$L42 -> 187.52 | N42: =SUMIF(TruckImpacts!$A:$A, $D42, TruckImpacts!G:G)*$L42 -> 285.2
D43: =TruckImpacts!A$57 -> C10E | E43: =TruckImpacts!B$57 -> FUEL | F43: =TruckImpacts!C$57 -> Fuel Truck - EMPTY | G43: Out | H43: 6 | I43: 0.1875 | J43: 48 | K43: =SUMIF(Inputs!$A$99:$A$109, E43, Inputs!$G$99:$G$109)/100 -> 1 | L43: 48 | M43: =SUMIF(TruckImpacts!$A:$A, $D43, TruckImpacts!F:F)*$L43 -> 13.584 | N43: =SUMIF(TruckImpacts!$A:$A, $D43, TruckImpacts!G:G)*$L43 -> 12.816
D44: =TruckImpacts!A$58 -> C10F | E44: =TruckImpacts!B$58 -> FUEL | F44: =TruckImpacts!C$58 -> Fuel Truck - LOADED | G44: In | H44: 6 | I44: 0.1875 | J44: 48 | K44: =SUMIF(Inputs!$A$99:$A$109, E44, Inputs!$G$99:$G$109)/100 -> 1 | L44: 48 | M44: =SUMIF(TruckImpacts!$A:$A, $D44, TruckImpacts!F:F)*$L44 -> 112.512 | N44: =SUMIF(TruckImpacts!$A:$A, $D44, TruckImpacts!G:G)*$L44 -> 171.12
B45: Completion Equipment | C45: =TripGen!F9 -> 12 | D45: =TruckImpacts!A$48 -> C4E | E45: =TruckImpacts!B$48 -> PIPE | F45: =TruckImpacts!C$48 -> Pipe - EMPTY | G45: Out | H45: 2 | I45: 0.1666666667 | J45: =I45*C$45 -> 2 | K45: =SUMIF(Inputs!$A$99:$A$109, E45, Inputs!$G$99:$G$109)/100 -> 1 | L45: 2 | M45: =SUMIF(TruckImpacts!$A:$A, $D45, TruckImpacts!F:F)*$L45 -> 0.176 | N45: =SUMIF(TruckImpacts!$A:$A, $D45, TruckImpacts!G:G)*$L45 -> 0.182
D46: =TruckImpacts!A$49 -> C4F | E46: =TruckImpacts!B$49 -> PIPE | F46: =TruckImpacts!C$49 -> Pipe - LOADED | G46: In | H46: 2 | I46: 0.1666666667 | J46: =I46*C$45 -> 2 | K46: =SUMIF(Inputs!$A$99:$A$109, E46, Inputs!$G$99:$G$109)/100 -> 1 | L46: 2 | M46: =SUMIF(TruckImpacts!$A:$A, $D46, TruckImpacts!F:F)*$L46 -> 4.886 | N46: =SUMIF(TruckImpacts!$A:$A, $D46, TruckImpacts!G:G)*$L46 -> 8.562
D47: =TruckImpacts!A$60 -> C12 | E47: =TruckImpacts!B$60 -> CHEM | F47: =TruckImpacts!C$60 -> Acid Pump | G47: Both | H47: 6 | I47: 0.5 | J47: 6 | K47: =SUMIF(Inputs!$A$99:$A$109, E47, Inputs!$G$99:$G$109)/100 -> 1 | L47: 6 | M47: =SUMIF(TruckImpacts!$A:$A, $D47, TruckImpacts!F:F)*$L47 -> 13.938 | N47: =SUMIF(TruckImpacts!$A:$A, $D47, TruckImpacts!G:G)*$L47 -> 24.324
D48: =TruckImpacts!A$50 -> C5 | E48: =TruckImpacts!B$50 -> RIG | F48: =TruckImpacts!C$50 -> Wireline | G48: Both | H48: 2 | I48: 0.1666666667 | J48: 2 | K48: =SUMIF(Inputs!$A$99:$A$109, E48, Inputs!$G$99:$G$109)/100 -> 1 | L48: 2 | M48: =SUMIF(TruckImpacts!$A:$A, $D48, TruckImpacts!F:F)*$L48 -> 4.688 | N48: =SUMIF(TruckImpacts!$A:$A, $D48, TruckImpacts!G:G)*$L48 -> 7.13
B49: Fracturing Equipment | C49: =TripGen!F10 -> 250 | D49: =TruckImpacts!A$53 -> C7E | E49: =TruckImpacts!B$53 -> RIG | F49: =TruckImpacts!C$53 -> Frac Tank - EMPTY | G49: Out | H49: 115 | I49: 0.46 | J49: =I49*C$49 -> 115 | K49: =SUMIF(Inputs!$A$99:$A$109, E49, Inputs!$G$99:$G$109)/100 -> 1 | L49: 115 | M49: =SUMIF(TruckImpacts!$A:$A, $D49, TruckImpacts!F:F)*$L49 -> 10.235 | N49: =SUMIF(TruckImpacts!$A:$A, $D49, TruckImpacts!G:G)*$L49 -> 9.66
D50: =TruckImpacts!A$54 -> C7F | E50: =TruckImpacts!B$54 -> RIG | F50: =TruckImpacts!C$54 -> Frac Tank - LOADED | G50: In | H50: 115 | I50: 0.46 | J50: =I50*C$49 -> 115 | K50: =SUMIF(Inputs!$A$99:$A$109, E50, Inputs!$G$99:$G$109)/100 -> 1 | L50: 115 | M50: =SUMIF(TruckImpacts!$A:$A, $D50, TruckImpacts!F:F)*$L50 -> 11.155 | N50: =SUMIF(TruckImpacts!$A:$A, $D50, TruckImpacts!G:G)*$L50 -> 10.925
D51: =TruckImpacts!A$55 -> C8 | E51: =TruckImpacts!B$55 -> F-WATER | F51: =TruckImpacts!C$55 -> Pump Truck | G51: Both | H51: 18 | I51: 0.072 | J51: 18 | K51: =SUMIF(Inputs!$A$99:$A$109, E51, Inputs!$G$99:$G$109)/100 -> 1 | L51: 18 | M51: =SUMIF(TruckImpacts!$A:$A, $D51, TruckImpacts!F:F)*$L51 -> 25.794 | N51: =SUMIF(TruckImpacts!$A:$A, $D51, TruckImpacts!G:G)*$L51 -> 46.998
D52: =TruckImpacts!A$56 -> C9 | E52: =TruckImpacts!B$56 -> RIG | F52: =TruckImpacts!C$56 -> Control Van | G52: Both | H52: 2 | I52: 0.008 | J52: 2 | K52: =SUMIF(Inputs!$A$99:$A$109, E52, Inputs!$G$99:$G$109)/100 -> 1 | L52: 2 | M52: =SUMIF(TruckImpacts!$A:$A, $D52, TruckImpacts!F:F)*$L52 -> 0.884 | N52: =SUMIF(TruckImpacts!$A:$A, $D52, TruckImpacts!G:G)*$L52 -> 1.248
B53: Fracture Water | C53: =TripGen!F11 -> 7376 | D53: =TruckImpacts!A$43 -> C2E | E53: =TruckImpacts!B$43 -> F-WATER | F53: =TruckImpacts!C$43 -> Water - EMPTY | G53: Out | H53: 461 | I53: 0.5 | J53: =I53*C$53 -> 3688 | K53: =(SUMIF(Inputs!$A$99:$A$109, E53, Inputs!$G$99:$G$109)/100)*IF(Inputs!$G$78="Yes", 0, 1) -> 1 | L53: 3688 | M53: =SUMIF(TruckImpacts!$A:$A, $D53, TruckImpacts!F:F)*$L53 -> 276.6 | N53: =SUMIF(TruckImpacts!$A:$A, $D53, TruckImpacts!G:G)*$L53 -> 287.664
D54: =TruckImpacts!A$44 -> C2F1 | E54: =TruckImpacts!B$44 -> F-WATER | F54: =TruckImpacts!C$44 -> Fresh Water - LOADED | G54: In | H54: 461 | I54: 0.5 | J54: =I54*C$53 -> 3688 | K54: =(SUMIF(Inputs!$A$99:$A$109, E54, Inputs!$G$99:$G$109)/100)*IF(Inputs!$G$78="Yes", 0, 1) -> 1 | L54: 3688 | M54: =SUMIF(TruckImpacts!$A:$A, $D54, TruckImpacts!F:F)*$L54 -> 5236.96 | N54: =SUMIF(TruckImpacts!$A:$A, $D54, TruckImpacts!G:G)*$L54 -> 8862.264
B55: Fracture Sand | C55: =TripGen!F12 -> 672 | D55: =TruckImpacts!A$46 -> C3E | E55: =TruckImpacts!B$46 -> SAND | F55: =TruckImpacts!C$46 -> Sand Truck - EMPTY | G55: Out | H55: 42 | I55: 0.5 | J55: =I55*C$55 -> 336 | K55: =SUMIF(Inputs!$A$99:$A$109, E55, Inputs!$G$99:$G$109)/100 -> 1 | L55: 336 | M55: =SUMIF(TruckImpacts!$A:$A, $D55, TruckImpacts!F:F)*$L55 -> 35.28 | N55: =SUMIF(TruckImpacts!$A:$A, $D55, TruckImpacts!G:G)*$L55 -> 57.456
D56: =TruckImpacts!A$47 -> C3F | E56: =TruckImpacts!B$47 -> SAND | F56: =TruckImpacts!C$47 -> Sand Truck - LOADED | G56: In | H56: 42 | I56: 0.5 | J56: =I56*C$55 -> 336 | K56: =SUMIF(Inputs!$A$99:$A$109, E56, Inputs!$G$99:$G$109)/100 -> 1 | L56: 336 | M56: =SUMIF(TruckImpacts!$A:$A, $D56, TruckImpacts!F:F)*$L56 -> 855.792 | N56: =SUMIF(TruckImpacts!$A:$A, $D56, TruckImpacts!G:G)*$L56 -> 1524.432
B57: Flowback Water Disposal | C57: =TripGen!F13 -> 2464 | D57: =TruckImpacts!A$43 -> C2E | E57: =TruckImpacts!B$43 -> F-WATER | F57: =TruckImpacts!C$43 -> Water - EMPTY | G57: In | H57: 154 | I57: 0.5 | J57: =I57*C$57 -> 1232 | K57: =SUMIF(Inputs!$A$99:$A$109, E57, Inputs!$G$99:$G$109)/100 -> 1 | L57: 1232 | M57: =SUMIF(TruckImpacts!$A:$A, $D57, TruckImpacts!F:F)*$L57 -> 92.4 | N57: =SUMIF(TruckImpacts!$A:$A, $D57, TruckImpacts!G:G)*$L57 -> 96.096
D58: =TruckImpacts!A$45 -> C2F2 | E58: =TruckImpacts!B$45 -> P-WATER | F58: =TruckImpacts!C$45 -> Produced Water - LOADED | G58: Out | H58: 154 | I58: 0.5 | J58: =I58*C$57 -> 1232 | K58: =SUMIF(Inputs!$A$99:$A$109, E58, Inputs!$G$99:$G$109)/100 -> 1 | L58: 1232 | M58: =SUMIF(TruckImpacts!$A:$A, $D58, TruckImpacts!F:F)*$L58 -> 3835.216 | N58: =SUMIF(TruckImpacts!$A:$A, $D58, TruckImpacts!G:G)*$L58 -> 6858.544
C59: =SUM(C2:C58) -> 12370 | H59: =SUM(H2:H58) -> 1940 | J59: =SUM(J2:J58) -> 12370 | L59: =SUM(L2:L58) -> 12370 | M59: =SUM(M2:M58) -> 12625.292 | N59: =SUM(N2:N58) -> 21564.039
M60: Asphalt | N60: Concrete
A62: Production (Future) | B62: Check-Ups | C62: =TripGen!F40 -> 560 | D62: =TruckImpacts!A66 -> P3 | E62: =TruckImpacts!B66 -> WORK | F62: =TruckImpacts!C66 -> Pickup Truck | G62: Both | H62: =ROUND(TripGen!E$40*(150/446), 0) -> 188 | I62: 0.3357142857 | J62: =I62*C$62 -> 188 | K62: =SUMIF(Inputs!$A$99:$A$110, E62, Inputs!$G$99:$G$110)/100 -> 1 | L62: =ROUND(J62*K62, 0) -> 188 | M62: =SUMIF(TruckImpacts!$A:$A, $D62, TruckImpacts!F:F)*$L62 -> 0.564 | N62: =SUMIF(TruckImpacts!$A:$A, $D62, TruckImpacts!G:G)*$L62 -> 0.564
B63: Oil | D63: =TruckImpacts!A62 -> P1F | E63: =TruckImpacts!B62 -> OIL | F63: =TruckImpacts!C62 -> Oil - LOADED | G63: Out | H63: =ROUND((TripGen!E$40-H62)*((3/7)/2), 0) -> 80 | I63: 0.1428571429 | J63: 80 | K63: =SUMIF(Inputs!$A$99:$A$110, E63, Inputs!$G$99:$G$110)/100 -> 1 | L63: =ROUND(J63*K63, 0) -> 80 | M63: =SUMIF(TruckImpacts!$A:$A, $D63, TruckImpacts!F:F)*$L63 -> 195.44 | N63: =SUMIF(TruckImpacts!$A:$A, $D63, TruckImpacts!G:G)*$L63 -> 342.48
D64: =TruckImpacts!A63 -> P1E | E64: =TruckImpacts!B63 -> OIL | F64: =TruckImpacts!C63 -> Oil - Empty | G64: In | H64: =H63 -> 80 | I64: 0.1428571429 | J64: 80 | K64: =SUMIF(Inputs!$A$99:$A$110, E64, Inputs!$G$99:$G$110)/100 -> 1 | L64: 80 | M64: =SUMIF(TruckImpacts!$A:$A, $D64, TruckImpacts!F:F)*$L64 -> 60 | N64: =SUMIF(TruckImpacts!$A:$A, $D64, TruckImpacts!G:G)*$L64 -> 62.4
B65: Water | D65: =TruckImpacts!A64 -> P2E | E65: =TruckImpacts!B64 -> F-WATER | F65: =TruckImpacts!C64 -> Water - EMPTY | G65: In | H65: =(TripGen!E$40-SUM(H62:H64))/2 -> 106 | I65: 0.1892857143 | J65: 106 | K65: =SUMIF(Inputs!$A$99:$A$110, E65, Inputs!$G$99:$G$110)/100 -> 1 | L65: 106 | M65: =SUMIF(TruckImpacts!$A:$A, $D65, TruckImpacts!F:F)*$L65 -> 79.5 | N65: =SUMIF(TruckImpacts!$A:$A, $D65, TruckImpacts!G:G)*$L65 -> 82.68
D66: =TruckImpacts!A65 -> P2F | E66: =TruckImpacts!B65 -> P-WATER | F66: =TruckImpacts!C65 -> Produced Water - LOADED | G66: Out | H66: =H65 -> 106 | I66: 0.1892857143 | J66: 106 | K66: =SUMIF(Inputs!$A$99:$A$110, E66, Inputs!$G$99:$G$110)/100 -> 1 | L66: 106 | M66: =SUMIF(TruckImpacts!$A:$A, $D66, TruckImpacts!F:F)*$L66 -> 329.978 | N66: =SUMIF(TruckImpacts!$A:$A, $D66, TruckImpacts!G:G)*$L66 -> 590.102
C67: =SUM(C62:C66) -> 560 | H67: =SUM(H62:H66) -> 560 | J67: =SUM(J62:J66) -> 560 | L67: =SUM(L62:L66) -> 560 | M67: =SUM(M62:M66) -> 665.482 | N67: =SUM(N62:N66) -> 1078.226
M68: Asphalt | N68: Concrete
A70: Production (Existing) | B70: Check-Ups | C70: =TripGen!F41 -> 0 | D70: =TruckImpacts!A66 -> P3 | E70: =TruckImpacts!B66 -> WORK | F70: =TruckImpacts!C66 -> Pickup Truck | G70: Both | H70: =ROUND(TripGen!E$41*(150/446), 0) -> 188 | I70: 0.3357142857 | J70: =I70*C$70 -> 0 | K70: =SUMIF(Inputs!$A$99:$A$110, E70, Inputs!$G$99:$G$110)/100 -> 1 | L70: =ROUND(J70*K70, 0) -> 0 | M70: =SUMIF(TruckImpacts!$A:$A, $D70, TruckImpacts!F:F)*$L70 -> 0 | N70: =SUMIF(TruckImpacts!$A:$A, $D70, TruckImpacts!G:G)*$L70 -> 0
B71: Oil | D71: =TruckImpacts!A62 -> P1F | E71: =TruckImpacts!B62 -> OIL | F71: =TruckImpacts!C62 -> Oil - LOADED | G71: Out | H71: =ROUND((TripGen!E$41-H70)*((3/7)/2), 0) -> 80 | I71: 0.1428571429 | J71: =I71*C$70 -> 0 | K71: =SUMIF(Inputs!$A$99:$A$110, E71, Inputs!$G$99:$G$110)/100 -> 1 | L71: =ROUND(J71*K71, 0) -> 0 | M71: =SUMIF(TruckImpacts!$A:$A, $D71, TruckImpacts!F:F)*$L71 -> 0 | N71: =SUMIF(TruckImpacts!$A:$A, $D71, TruckImpacts!G:G)*$L71 -> 0
D72: =TruckImpacts!A63 -> P1E | E72: =TruckImpacts!B63 -> OIL | F72: =TruckImpacts!C63 -> Oil - Empty | G72: In | H72: =H71 -> 80 | I72: 0.1428571429 | J72: =I72*C$70 -> 0 | K72: =SUMIF(Inputs!$A$99:$A$110, E72, Inputs!$G$99:$G$110)/100 -> 1 | L72: 0 | M72: =SUMIF(TruckImpacts!$A:$A, $D72, TruckImpacts!F:F)*$L72 -> 0 | N72: =SUMIF(TruckImpacts!$A:$A, $D72, TruckImpacts!G:G)*$L72 -> 0
B73: Water | D73: =TruckImpacts!A64 -> P2E | E73: =TruckImpacts!B64 -> F-WATER | F73: =TruckImpacts!C64 -> Water - EMPTY | G73: In | H73: =(TripGen!E$41-SUM(H70:H72))/2 -> 106 | I73: 0.1892857143 | J73: =I73*C$70 -> 0 | K73: =SUMIF(Inputs!$A$99:$A$110, E73, Inputs!$G$99:$G$110)/100 -> 1 | L73: 0 | M73: =SUMIF(TruckImpacts!$A:$A, $D73, TruckImpacts!F:F)*$L73 -> 0 | N73: =SUMIF(TruckImpacts!$A:$A, $D73, TruckImpacts!G:G)*$L73 -> 0
D74: =TruckImpacts!A65 -> P2F | E74: =TruckImpacts!B65 -> P-WATER | F74: =TruckImpacts!C65 -> Produced Water - LOADED | G74: Out | H74: =H73 -> 106 | I74: 0.1892857143 | J74: =I74*C$70 -> 0 | K74: =SUMIF(Inputs!$A$99:$A$110, E74, Inputs!$G$99:$G$110)/100 -> 1 | L74: 0 | M74: =SUMIF(TruckImpacts!$A:$A, $D74, TruckImpacts!F:F)*$L74 -> 0 | N74: =SUMIF(TruckImpacts!$A:$A, $D74, TruckImpacts!G:G)*$L74 -> 0
C75: =SUM(C70:C74) -> 0 | H75: =SUM(H70:H74) -> 560 | J75: =SUM(J70:J74) -> 0 | L75: =SUM(L70:L74) -> 0 | M75: =SUM(M70:M74) -> 0 | N75: =SUM(N70:N74) -> 0
M76: Asphalt | N76: Concrete
A78: Construction (Vertical) | B78: Pad and Road Construction | C78: =TripGen!F17 -> 64 | D78: =TruckImpacts!A$3 -> PC1E | E78: =TruckImpacts!B$3 -> EQUIP | F78: =TruckImpacts!C$3 -> Construction Equipment Truck - EMPTY | G78: Both | H78: 6 | I78: 0.09090909091 | J78: =I78*C$78 -> 5.818181818 | K78: =SUMIF(Inputs!$A$99:$A$109, E78, Inputs!$G$99:$G$109)/100 -> 1 | L78: =ROUND(J78*K78, 0) -> 6 | M78: =SUMIF(TruckImpacts!$A:$A, $D78, TruckImpacts!F:F)*$L78 -> 0.528 | N78: =SUMIF(TruckImpacts!$A:$A, $D78, TruckImpacts!G:G)*$L78 -> 0.546
D79: =TruckImpacts!A$4 -> PC1F | E79: =TruckImpacts!B$4 -> EQUIP | F79: =TruckImpacts!C$4 -> Construction Equipment Truck - LOADED | G79: Both | H79: 6 | I79: 0.09090909091 | J79: =I79*C$78 -> 5.818181818 | K79: =SUMIF(Inputs!$A$99:$A$109, E79, Inputs!$G$99:$G$109)/100 -> 1 | L79: =ROUND(J79*K79, 0) -> 6 | M79: =SUMIF(TruckImpacts!$A:$A, $D79, TruckImpacts!F:F)*$L79 -> 6.126 | N79: =SUMIF(TruckImpacts!$A:$A, $D79, TruckImpacts!G:G)*$L79 -> 9.978
D80: =TruckImpacts!A$5 -> PC2E | E80: =TruckImpacts!B$5 -> GRAV | F80: =TruckImpacts!C$5 -> Gravel Truck - EMPTY | G80: Out | H80: 15 | I80: 0.2272727273 | J80: 14.54545455 | K80: =SUMIF(Inputs!$A$99:$A$109, E80, Inputs!$G$99:$G$109)/100 -> 1 | L80: 15 | M80: =SUMIF(TruckImpacts!$A:$A, $D80, TruckImpacts!F:F)*$L80 -> 1.53 | N80: =SUMIF(TruckImpacts!$A:$A, $D80, TruckImpacts!G:G)*$L80 -> 1.575
D81: =TruckImpacts!A$6 -> PC2F | E81: =TruckImpacts!B$6 -> GRAV | F81: =TruckImpacts!C$6 -> Gravel Truck - LOADED | G81: In | H81: 15 | I81: 0.2272727273 | J81: 14.54545455 | K81: =SUMIF(Inputs!$A$99:$A$109, E81, Inputs!$G$99:$G$109)/100 -> 1 | L81: 15 | M81: =SUMIF(TruckImpacts!$A:$A, $D81, TruckImpacts!F:F)*$L81 -> 23.475 | N81: =SUMIF(TruckImpacts!$A:$A, $D81, TruckImpacts!G:G)*$L81 -> 39.45
D82: =TruckImpacts!A$7 -> PC3 | E82: =TruckImpacts!B$7 -> WORK | F82: =TruckImpacts!C$7 -> Pickup Truck | G82: Both | H82: 22 | I82: 0.34375 | J82: =I82*C$78 -> 22 | K82: =SUMIF(Inputs!$A$99:$A$109, E82, Inputs!$G$99:$G$109)/100 -> 1 | L82: =ROUND(J82*K82, 0) -> 22 | M82: =SUMIF(TruckImpacts!$A:$A, $D82, TruckImpacts!F:F)*$L82 -> 0.066 | N82: =SUMIF(TruckImpacts!$A:$A, $D82, TruckImpacts!G:G)*$L82 -> 0.066
A83: Drilling (Vertical) | B83: Drilling Rig | C83: =TripGen!F18 -> 66 | D83: =TruckImpacts!A$9 -> D1 | E83: =TruckImpacts!B$9 -> RIG | F83: =TruckImpacts!C$9 -> Generator House | G83: Both | H83: 6 | I83: 0.09090909091 | J83: =I83*C$83 -> 6 | K83: =SUMIF(Inputs!$A$99:$A$109, E83, Inputs!$G$99:$G$109)/100 -> 1 | L83: =ROUND(J83*K83, 0) -> 6 | M83: =SUMIF(TruckImpacts!$A:$A, $D83, TruckImpacts!F:F)*$L83 -> 23.232 | N83: =SUMIF(TruckImpacts!$A:$A, $D83, TruckImpacts!G:G)*$L83 -> 56.058
D84: =TruckImpacts!A$10 -> D2 | E84: =TruckImpacts!B$10 -> RIG | F84: =TruckImpacts!C$10 -> Crown Section | G84: Both | H84: 2 | I84: 0.0303030303 | J84: =I84*C$83 -> 2 | K84: =SUMIF(Inputs!$A$99:$A$109, E84, Inputs!$G$99:$G$109)/100 -> 1 | L84: 2 | M84: =SUMIF(TruckImpacts!$A:$A, $D84, TruckImpacts!F:F)*$L84 -> 16.492 | N84: =SUMIF(TruckImpacts!$A:$A, $D84, TruckImpacts!G:G)*$L84 -> 31.858
D85: =TruckImpacts!A$11 -> D3 | E85: =TruckImpacts!B$11 -> RIG | F85: =TruckImpacts!C$11 -> Shaker Tank/Pit | G85: Both | H85: 2 | I85: 0.0303030303 | J85: 2 | K85: =SUMIF(Inputs!$A$99:$A$109, E85, Inputs!$G$99:$G$109)/100 -> 1 | L85: 2 | M85: =SUMIF(TruckImpacts!$A:$A, $D85, TruckImpacts!F:F)*$L85 -> 5.114 | N85: =SUMIF(TruckImpacts!$A:$A, $D85, TruckImpacts!G:G)*$L85 -> 12.166
D86: =TruckImpacts!A$12 -> D4 | E86: =TruckImpacts!B$12 -> RIG | F86: =TruckImpacts!C$12 -> Derrick | G86: Both | H86: 2 | I86: 0.0303030303 | J86: 2 | K86: =SUMIF(Inputs!$A$99:$A$109, E86, Inputs!$G$99:$G$109)/100 -> 1 | L86: 2 | M86: =SUMIF(TruckImpacts!$A:$A, $D86, TruckImpacts!F:F)*$L86 -> 16.954 | N86: =SUMIF(TruckImpacts!$A:$A, $D86, TruckImpacts!G:G)*$L86 -> 36.962
D87: =TruckImpacts!A$13 -> D5 | E87: =TruckImpacts!B$13 -> RIG | F87: =TruckImpacts!C$13 -> Suction Tank | G87: Both | H87: 2 | I87: 0.0303030303 | J87: 2 | K87: =SUMIF(Inputs!$A$99:$A$109, E87, Inputs!$G$99:$G$109)/100 -> 1 | L87: 2 | M87: =SUMIF(TruckImpacts!$A:$A, $D87, TruckImpacts!F:F)*$L87 -> 5.546 | N87: =SUMIF(TruckImpacts!$A:$A, $D87, TruckImpacts!G:G)*$L87 -> 10.84
D88: =TruckImpacts!A$14 -> D6 | E88: =TruckImpacts!B$14 -> RIG | F88: =TruckImpacts!C$14 -> VFD House | G88: Both | H88: 2 | I88: 0.0303030303 | J88: 2 | K88: =SUMIF(Inputs!$A$99:$A$109, E88, Inputs!$G$99:$G$109)/100 -> 1 | L88: 2 | M88: =SUMIF(TruckImpacts!$A:$A, $D88, TruckImpacts!F:F)*$L88 -> 7.334 | N88: =SUMIF(TruckImpacts!$A:$A, $D88, TruckImpacts!G:G)*$L88 -> 16.074
D89: =TruckImpacts!A$15 -> D7 | E89: =TruckImpacts!B$15 -> RIG | F89: =TruckImpacts!C$15 -> Mud Pump | G89: Both | H89: 4 | I89: 0.06060606061 | J89: 4 | K89: =SUMIF(Inputs!$A$99:$A$109, E89, Inputs!$G$99:$G$109)/100 -> 1 | L89: 4 | M89: =SUMIF(TruckImpacts!$A:$A, $D89, TruckImpacts!F:F)*$L89 -> 22.016 | N89: =SUMIF(TruckImpacts!$A:$A, $D89, TruckImpacts!G:G)*$L89 -> 51.124
D90: =TruckImpacts!A$16 -> D8 | E90: =TruckImpacts!B$16 -> RIG | F90: =TruckImpacts!C$16 -> Mud Boat | G90: Both | H90: 2 | I90: 0.0303030303 | J90: 2 | K90: =SUMIF(Inputs!$A$99:$A$109, E90, Inputs!$G$99:$G$109)/100 -> 1 | L90: 2 | M90: =SUMIF(TruckImpacts!$A:$A, $D90, TruckImpacts!F:F)*$L90 -> 10.422 | N90: =SUMIF(TruckImpacts!$A:$A, $D90, TruckImpacts!G:G)*$L90 -> 22.69
D91: =TruckImpacts!A$17 -> D9 | E91: =TruckImpacts!B$17 -> RIG | F91: =TruckImpacts!C$17 -> Shaker Skid | G91: Both | H91: 2 | I91: 0.0303030303 | J91: 2 | K91: =SUMIF(Inputs!$A$99:$A$109, E91, Inputs!$G$99:$G$109)/100 -> 1 | L91: 2 | M91: =SUMIF(TruckImpacts!$A:$A, $D91, TruckImpacts!F:F)*$L91 -> 10.43 | N91: =SUMIF(TruckImpacts!$A:$A, $D91, TruckImpacts!G:G)*$L91 -> 22.766
D92: =TruckImpacts!A$18 -> D10 | E92: =TruckImpacts!B$18 -> RIG | F92: =TruckImpacts!C$18 -> Substructure, etc. | G92: Both | H92: 10 | I92: 0.1515151515 | J92: 10 | K92: =SUMIF(Inputs!$A$99:$A$109, E92, Inputs!$G$99:$G$109)/100 -> 1 | L92: 10 | M92: =SUMIF(TruckImpacts!$A:$A, $D92, TruckImpacts!F:F)*$L92 -> 90.13 | N92: =SUMIF(TruckImpacts!$A:$A, $D92, TruckImpacts!G:G)*$L92 -> 149.15
D93: =TruckImpacts!A$19 -> D11 | E93: =TruckImpacts!B$19 -> RIG | F93: =TruckImpacts!C$19 -> Draw Works | G93: Both | H93: 2 | I93: 0.0303030303 | J93: 2 | K93: =SUMIF(Inputs!$A$99:$A$109, E93, Inputs!$G$99:$G$109)/100 -> 1 | L93: 2 | M93: =SUMIF(TruckImpacts!$A:$A, $D93, TruckImpacts!F:F)*$L93 -> 12.65 | N93: =SUMIF(TruckImpacts!$A:$A, $D93, TruckImpacts!G:G)*$L93 -> 30.094
D94: =TruckImpacts!A$20 -> D12 | E94: =TruckImpacts!B$20 -> RIG | F94: =TruckImpacts!C$20 -> Hydraulic Unit | G94: Both | H94: 2 | I94: 0.0303030303 | J94: 2 | K94: =SUMIF(Inputs!$A$99:$A$109, E94, Inputs!$G$99:$G$109)/100 -> 1 | L94: 2 | M94: =SUMIF(TruckImpacts!$A:$A, $D94, TruckImpacts!F:F)*$L94 -> 7.978 | N94: =SUMIF(TruckImpacts!$A:$A, $D94, TruckImpacts!G:G)*$L94 -> 17.67
D95: =TruckImpacts!A$21 -> D13 | E95: =TruckImpacts!B$21 -> RIG | F95: =TruckImpacts!C$21 -> Choke Manifold | G95: Both | H95: 2 | I95: 0.0303030303 | J95: 2 | K95: =SUMIF(Inputs!$A$99:$A$109, E95, Inputs!$G$99:$G$109)/100 -> 1 | L95: 2 | M95: =SUMIF(TruckImpacts!$A:$A, $D95, TruckImpacts!F:F)*$L95 -> 12.528 | N95: =SUMIF(TruckImpacts!$A:$A, $D95, TruckImpacts!G:G)*$L95 -> 20.872
D96: =TruckImpacts!A$22 -> D14 | E96: =TruckImpacts!B$22 -> RIG | F96: =TruckImpacts!C$22 -> MCC House | G96: Both | H96: 2 | I96: 0.0303030303 | J96: 2 | K96: =SUMIF(Inputs!$A$99:$A$109, E96, Inputs!$G$99:$G$109)/100 -> 1 | L96: 2 | M96: =SUMIF(TruckImpacts!$A:$A, $D96, TruckImpacts!F:F)*$L96 -> 14.858 | N96: =SUMIF(TruckImpacts!$A:$A, $D96, TruckImpacts!G:G)*$L96 -> 33.416
D97: =TruckImpacts!A$23 -> D15 | E97: =TruckImpacts!B$23 -> RIG | F97: =TruckImpacts!C$23 -> Tool Room / Junk Box | G97: Both | H97: 2 | I97: 0.0303030303 | J97: 2 | K97: =SUMIF(Inputs!$A$99:$A$109, E97, Inputs!$G$99:$G$109)/100 -> 1 | L97: 2 | M97: =SUMIF(TruckImpacts!$A:$A, $D97, TruckImpacts!F:F)*$L97 -> 11.93 | N97: =SUMIF(TruckImpacts!$A:$A, $D97, TruckImpacts!G:G)*$L97 -> 27.132
D98: =TruckImpacts!A$24 -> D16 | E98: =TruckImpacts!B$24 -> RIG | F98: =TruckImpacts!C$24 -> Screen House | G98: Both | H98: 2 | I98: 0.0303030303 | J98: 2 | K98: =SUMIF(Inputs!$A$99:$A$109, E98, Inputs!$G$99:$G$109)/100 -> 1 | L98: 2 | M98: =SUMIF(TruckImpacts!$A:$A, $D98, TruckImpacts!F:F)*$L98 -> 5.246 | N98: =SUMIF(TruckImpacts!$A:$A, $D98, TruckImpacts!G:G)*$L98 -> 12.668
D99: =TruckImpacts!A$25 -> D17 | E99: =TruckImpacts!B$25 -> RIG | F99: =TruckImpacts!C$25 -> Light Plant | G99: Both | H99: 2 | I99: 0.0303030303 | J99: 2 | K99: =SUMIF(Inputs!$A$99:$A$109, E99, Inputs!$G$99:$G$109)/100 -> 1 | L99: 2 | M99: =SUMIF(TruckImpacts!$A:$A, $D99, TruckImpacts!F:F)*$L99 -> 6.68 | N99: =SUMIF(TruckImpacts!$A:$A, $D99, TruckImpacts!G:G)*$L99 -> 17.316
D100: =TruckImpacts!A$26 -> D18 | E100: =TruckImpacts!B$26 -> RIG | F100: =TruckImpacts!C$26 -> Mud Tank | G100: Both | H100: 2 | I100: 0.0303030303 | J100: 2 | K100: =SUMIF(Inputs!$A$99:$A$109, E100, Inputs!$G$99:$G$109)/100 -> 1 | L100: 2 | M100: =SUMIF(TruckImpacts!$A:$A, $D100, TruckImpacts!F:F)*$L100 -> 6.916 | N100: =SUMIF(TruckImpacts!$A:$A, $D100, TruckImpacts!G:G)*$L100 -> 13.554
D101: =TruckImpacts!A$40 -> D26 | E101: =TruckImpacts!B$40 -> WORK | F101: =TruckImpacts!C$40 -> Pickup Truck | G101: Both | H101: 16 | I101: 0.2424242424 | J101: =I101*C$83 -> 16 | K101: =SUMIF(Inputs!$A$99:$A$109, E101, Inputs!$G$99:$G$109)/100 -> 1 | L101: 16 | M101: =SUMIF(TruckImpacts!$A:$A, $D101, TruckImpacts!F:F)*$L101 -> 0.048 | N101: =SUMIF(TruckImpacts!$A:$A, $D101, TruckImpacts!G:G)*$L101 -> 0.048
B102: Drilling Fluid and Materials | C102: =TripGen!F19 -> 352 | D102: =TruckImpacts!A$27 -> D19E | E102: =TruckImpacts!B$27 -> CEM | F102: =TruckImpacts!C$27 -> Cement Truck - EMPTY | G102: Out | H102: 5 | I102: 0.1125 | J102: =I102*C$102 -> 39.6 | K102: =SUMIF(Inputs!$A$99:$A$109, E102, Inputs!$G$99:$G$109)/100 -> 1 | L102: 40 | M102: =SUMIF(TruckImpacts!$A:$A, $D102, TruckImpacts!F:F)*$L102 -> 11.32 | N102: =SUMIF(TruckImpacts!$A:$A, $D102, TruckImpacts!G:G)*$L102 -> 10.68
D103: =TruckImpacts!A$28 -> D19F | E103: =TruckImpacts!B$28 -> CEM | F103: =TruckImpacts!C$28 -> Cement Truck - LOADED | G103: In | H103: 5 | I103: 0.1125 | J103: =I103*C$102 -> 39.6 | K103: =SUMIF(Inputs!$A$99:$A$109, E103, Inputs!$G$99:$G$109)/100 -> 1 | L103: 40 | M103: =SUMIF(TruckImpacts!$A:$A, $D103, TruckImpacts!F:F)*$L103 -> 93.76 | N103: =SUMIF(TruckImpacts!$A:$A, $D103, TruckImpacts!G:G)*$L103 -> 142.6
D104: =TruckImpacts!A$31 -> D22E | E104: =TruckImpacts!B$31 -> CHEM | F104: =TruckImpacts!C$31 -> Acid Tanker - EMPTY | G104: Out | H104: 3 | I104: 0.0625 | J104: 22 | K104: =SUMIF(Inputs!$A$99:$A$109, E104, Inputs!$G$99:$G$109)/100 -> 1 | L104: 22 | M104: =SUMIF(TruckImpacts!$A:$A, $D104, TruckImpacts!F:F)*$L104 -> 2.398 | N104: =SUMIF(TruckImpacts!$A:$A, $D104, TruckImpacts!G:G)*$L104 -> 2.442
D105: =TruckImpacts!A$32 -> D22F | E105: =TruckImpacts!B$32 -> CHEM | F105: =TruckImpacts!C$32 -> Acid Tanker - LOADED | G105: In | H105: 3 | I105: 0.0625 | J105: 22 | K105: =SUMIF(Inputs!$A$99:$A$109, E105, Inputs!$G$99:$G$109)/100 -> 1 | L105: 22 | M105: =SUMIF(TruckImpacts!$A:$A, $D105, TruckImpacts!F:F)*$L105 -> 68.486 | N105: =SUMIF(TruckImpacts!$A:$A, $D105, TruckImpacts!G:G)*$L105 -> 122.474
D106: =TruckImpacts!A$37 -> D25E | E106: =TruckImpacts!B$37 -> F-WATER | F106: =TruckImpacts!C$37 -> Water - EMPTY | G106: Both | H106: =SUM(H107:H108) -> 14 | I106: =SUM(I107:I108) -> 0.325 | J106: =SUM(J107:J108) -> 114.4 | L106: =SUM(L107:L108) -> 114 | M106: =SUMIF(TruckImpacts!$A:$A, $D106, TruckImpacts!F:F)*$L106 -> 8.55 | N106: =SUMIF(TruckImpacts!$A:$A, $D106, TruckImpacts!G:G)*$L106 -> 8.892
D107: =TruckImpacts!A$38 -> D25F1 | E107: =TruckImpacts!B$38 -> F-WATER | F107: =TruckImpacts!C$38 -> Fresh Water - LOADED | G107: In | H107: 7 | I107: 0.1625 | J107: =I107*C$102 -> 57.2 | K107: =(SUMIF(Inputs!$A$99:$A$109, E107, Inputs!$G$99:$G$109)/100)*IF(Inputs!$G$78="Yes", 0, 1) -> 1 | L107: =ROUND(J107*K107, 0) -> 57 | M107: =SUMIF(TruckImpacts!$A:$A, $D107, TruckImpacts!F:F)*$L107 -> 80.94 | N107: =SUMIF(TruckImpacts!$A:$A, $D107, TruckImpacts!G:G)*$L107 -> 136.971
D108: =TruckImpacts!A$39 -> D25F2 | E108: =TruckImpacts!B$39 -> P-WATER | F108: =TruckImpacts!C$39 -> Produced Water - LOADED | G108: Out | H108: 7 | I108: 0.1625 | J108: 57.2 | K108: =SUMIF(Inputs!$A$99:$A$109, E108, Inputs!$G$99:$G$109)/100 -> 1 | L108: 57 | M108: =SUMIF(TruckImpacts!$A:$A, $D108, TruckImpacts!F:F)*$L108 -> 177.441 | N108: =SUMIF(TruckImpacts!$A:$A, $D108, TruckImpacts!G:G)*$L108 -> 317.319
B109: Drilling Equipment | C109: =TripGen!F20 -> 480 | D109: =TruckImpacts!A$29 -> D20 | E109: =TruckImpacts!B$29 -> CEM | F109: =TruckImpacts!C$29 -> Cement Pump | G109: Both | H109: 12 | I109: 0.2 | J109: =I109*C$109 -> 96 | K109: =SUMIF(Inputs!$A$99:$A$109, E109, Inputs!$G$99:$G$109)/100 -> 1 | L109: 96 | M109: =SUMIF(TruckImpacts!$A:$A, $D109, TruckImpacts!F:F)*$L109 -> 145.92 | N109: =SUMIF(TruckImpacts!$A:$A, $D109, TruckImpacts!G:G)*$L109 -> 255.936
D110: =TruckImpacts!A$30 -> D21 | E110: =TruckImpacts!B$30 -> CHEM | F110: =TruckImpacts!C$30 -> Acid Pump | G110: Both | H110: 4 | I110: 0.06666666667 | J110: =I110*C$109 -> 32 | K110: =SUMIF(Inputs!$A$99:$A$109, E110, Inputs!$G$99:$G$109)/100 -> 1 | L110: 32 | M110: =SUMIF(TruckImpacts!$A:$A, $D110, TruckImpacts!F:F)*$L110 -> 74.336 | N110: =SUMIF(TruckImpacts!$A:$A, $D110, TruckImpacts!G:G)*$L110 -> 129.728
D111: =TruckImpacts!A$35 -> D24E | E111: =TruckImpacts!B$35 -> FUEL | F111: =TruckImpacts!C$35 -> Fuel Truck - EMPTY | G111: Out | H111: 8 | I111: 0.1333333333 | J111: =I111*C$109 -> 64 | K111: =SUMIF(Inputs!$A$99:$A$109, E111, Inputs!$G$99:$G$109)/100 -> 1 | L111: 64 | M111: =SUMIF(TruckImpacts!$A:$A, $D111, TruckImpacts!F:F)*$L111 -> 18.112 | N111: =SUMIF(TruckImpacts!$A:$A, $D111, TruckImpacts!G:G)*$L111 -> 17.088
D112: =TruckImpacts!A$36 -> D24F | E112: =TruckImpacts!B$36 -> FUEL | F112: =TruckImpacts!C$36 -> Fuel Truck - LOADED | G112: In | H112: 8 | I112: 0.1333333333 | J112: 64 | K112: =SUMIF(Inputs!$A$99:$A$109, E112, Inputs!$G$99:$G$109)/100 -> 1 | L112: 64 | M112: =SUMIF(TruckImpacts!$A:$A, $D112, TruckImpacts!F:F)*$L112 -> 150.016 | N112: =SUMIF(TruckImpacts!$A:$A, $D112, TruckImpacts!G:G)*$L112 -> 228.16
D113: =TruckImpacts!A$33 -> D23E | E113: =TruckImpacts!B$33 -> PIPE | F113: =TruckImpacts!C$33 -> Pipe - EMPTY | G113: Out | H113: 14 | I113: 0.2333333333 | J113: 112 | K113: =SUMIF(Inputs!$A$99:$A$109, E113, Inputs!$G$99:$G$109)/100 -> 1 | L113: 112 | M113: =SUMIF(TruckImpacts!$A:$A, $D113, TruckImpacts!F:F)*$L113 -> 9.856 | N113: =SUMIF(TruckImpacts!$A:$A, $D113, TruckImpacts!G:G)*$L113 -> 10.192
D114: =TruckImpacts!A$34 -> D23F | E114: =TruckImpacts!B$34 -> PIPE | F114: =TruckImpacts!C$34 -> Pipe - LOADED | G114: In | H114: 14 | I114: 0.2333333333 | J114: 112 | K114: =SUMIF(Inputs!$A$99:$A$109, E114, Inputs!$G$99:$G$109)/100 -> 1 | L114: 112 | M114: =SUMIF(TruckImpacts!$A:$A, $D114, TruckImpacts!F:F)*$L114 -> 273.616 | N114: =SUMIF(TruckImpacts!$A:$A, $D114, TruckImpacts!G:G)*$L114 -> 479.472
A115: Completion (Vertical) | B115: Completion Rig | C115: =TripGen!F21 -> 22 | D115: =TruckImpacts!A$42 -> C1 | E115: =TruckImpacts!B$42 -> RIG | F115: =TruckImpacts!C$42 -> Workover Rig | G115: Both | H115: 4 | I115: 0.1875 | J115: =I115*C115 -> 4.125 | K115: =SUMIF(Inputs!$A$99:$A$109, E115, Inputs!$G$99:$G$109)/100 -> 1 | L115: 4 | M115: =SUMIF(TruckImpacts!$A:$A, $D115, TruckImpacts!F:F)*$L115 -> 23.104 | N115: =SUMIF(TruckImpacts!$A:$A, $D115, TruckImpacts!G:G)*$L115 -> 53.568
D116: =TruckImpacts!A$59 -> C11 | E116: =TruckImpacts!B$59 -> WORK | F116: =TruckImpacts!C$59 -> Pickup Truck | G116: Both | H116: 18 | I116: 0.8125 | J116: =I116*C115 -> 17.875 | K116: =SUMIF(Inputs!$A$99:$A$109, E116, Inputs!$G$99:$G$109)/100 -> 1 | L116: 18 | M116: =SUMIF(TruckImpacts!$A:$A, $D116, TruckImpacts!F:F)*$L116 -> 0.054 | N116: =SUMIF(TruckImpacts!$A:$A, $D116, TruckImpacts!G:G)*$L116 -> 0.054
B117: Completion Fluid and Materials | C117: =TripGen!F22 -> 192 | D117: =TruckImpacts!A$51 -> C6E | E117: =TruckImpacts!B$51 -> CHEM | F117: =TruckImpacts!C$51 -> Chemical Truck - EMPTY | G117: Out | H117: 7 | I117: 0.2916666667 | J117: =I117*C$117 -> 56 | K117: =SUMIF(Inputs!$A$99:$A$109, E117, Inputs!$G$99:$G$109)/100 -> 1 | L117: 56 | M117: =SUMIF(TruckImpacts!$A:$A, $D117, TruckImpacts!F:F)*$L117 -> 15.848 | N117: =SUMIF(TruckImpacts!$A:$A, $D117, TruckImpacts!G:G)*$L117 -> 14.952
D118: =TruckImpacts!A$52 -> C6F | E118: =TruckImpacts!B$52 -> CHEM | F118: =TruckImpacts!C$52 -> Chemical Truck - LOADED | G118: In | H118: 7 | I118: 0.2916666667 | J118: =I118*C$117 -> 56 | K118: =SUMIF(Inputs!$A$99:$A$109, E118, Inputs!$G$99:$G$109)/100 -> 1 | L118: 56 | M118: =SUMIF(TruckImpacts!$A:$A, $D118, TruckImpacts!F:F)*$L118 -> 131.264 | N118: =SUMIF(TruckImpacts!$A:$A, $D118, TruckImpacts!G:G)*$L118 -> 199.64
D119: =TruckImpacts!A$57 -> C10E | E119: =TruckImpacts!B$57 -> FUEL | F119: =TruckImpacts!C$57 -> Fuel Truck - EMPTY | G119: Out | H119: 5 | I119: 0.2083333333 | J119: 40 | K119: =SUMIF(Inputs!$A$99:$A$109, E119, Inputs!$G$99:$G$109)/100 -> 1 | L119: 40 | M119: =SUMIF(TruckImpacts!$A:$A, $D119, TruckImpacts!F:F)*$L119 -> 11.32 | N119: =SUMIF(TruckImpacts!$A:$A, $D119, TruckImpacts!G:G)*$L119 -> 10.68
D120: =TruckImpacts!A$58 -> C10F | E120: =TruckImpacts!B$58 -> FUEL | F120: =TruckImpacts!C$58 -> Fuel Truck - LOADED | G120: In | H120: 5 | I120: 0.2083333333 | J120: 40 | K120: =SUMIF(Inputs!$A$99:$A$109, E120, Inputs!$G$99:$G$109)/100 -> 1 | L120: 40 | M120: =SUMIF(TruckImpacts!$A:$A, $D120, TruckImpacts!F:F)*$L120 -> 93.76 | N120: =SUMIF(TruckImpacts!$A:$A, $D120, TruckImpacts!G:G)*$L120 -> 142.6
B121: Completion Equipment | C121: =TripGen!F23 -> 8 | D121: =TruckImpacts!A$48 -> C4E | E121: =TruckImpacts!B$48 -> PIPE | F121: =TruckImpacts!C$48 -> Pipe - EMPTY | G121: Out | H121: 1 | I121: 0.125 | J121: =I121*C$121 -> 1 | K121: =SUMIF(Inputs!$A$99:$A$109, E121, Inputs!$G$99:$G$109)/100 -> 1 | L121: 1 | M121: =SUMIF(TruckImpacts!$A:$A, $D121, TruckImpacts!F:F)*$L121 -> 0.088 | N121: =SUMIF(TruckImpacts!$A:$A, $D121, TruckImpacts!G:G)*$L121 -> 0.091
D122: =TruckImpacts!A$49 -> C4F | E122: =TruckImpacts!B$49 -> PIPE | F122: =TruckImpacts!C$49 -> Pipe - LOADED | G122: In | H122: 1 | I122: 0.125 | J122: =I122*C$121 -> 1 | K122: =SUMIF(Inputs!$A$99:$A$109, E122, Inputs!$G$99:$G$109)/100 -> 1 | L122: 1 | M122: =SUMIF(TruckImpacts!$A:$A, $D122, TruckImpacts!F:F)*$L122 -> 2.443 | N122: =SUMIF(TruckImpacts!$A:$A, $D122, TruckImpacts!G:G)*$L122 -> 4.281
D123: =TruckImpacts!A$60 -> C12 | E123: =TruckImpacts!B$60 -> CHEM | F123: =TruckImpacts!C$60 -> Acid Pump | G123: Both | H123: 4 | I123: 0.5 | J123: 4 | K123: =SUMIF(Inputs!$A$99:$A$109, E123, Inputs!$G$99:$G$109)/100 -> 1 | L123: 4 | M123: =SUMIF(TruckImpacts!$A:$A, $D123, TruckImpacts!F:F)*$L123 -> 9.292 | N123: =SUMIF(TruckImpacts!$A:$A, $D123, TruckImpacts!G:G)*$L123 -> 16.216
D124: =TruckImpacts!A$50 -> C5 | E124: =TruckImpacts!B$50 -> RIG | F124: =TruckImpacts!C$50 -> Wireline | G124: Both | H124: 2 | I124: 0.25 | J124: 2 | K124: =SUMIF(Inputs!$A$99:$A$109, E124, Inputs!$G$99:$G$109)/100 -> 1 | L124: 2 | M124: =SUMIF(TruckImpacts!$A:$A, $D124, TruckImpacts!F:F)*$L124 -> 4.688 | N124: =SUMIF(TruckImpacts!$A:$A, $D124, TruckImpacts!G:G)*$L124 -> 7.13
B125: Fracturing Equipment | C125: =TripGen!F24 -> 146 | D125: =TruckImpacts!A$53 -> C7E | E125: =TruckImpacts!B$53 -> RIG | F125: =TruckImpacts!C$53 -> Frac Tank - EMPTY | G125: Out | H125: 69 | I125: 0.4726027397 | J125: =I125*C$125 -> 69 | K125: =SUMIF(Inputs!$A$99:$A$109, E125, Inputs!$G$99:$G$109)/100 -> 1 | L125: 69 | M125: =SUMIF(TruckImpacts!$A:$A, $D125, TruckImpacts!F:F)*$L125 -> 6.141 | N125: =SUMIF(TruckImpacts!$A:$A, $D125, TruckImpacts!G:G)*$L125 -> 5.796
D126: =TruckImpacts!A$54 -> C7F | E126: =TruckImpacts!B$54 -> RIG | F126: =TruckImpacts!C$54 -> Frac Tank - LOADED | G126: In | H126: 69 | I126: 0.4726027397 | J126: =I126*C$125 -> 69 | K126: =SUMIF(Inputs!$A$99:$A$109, E126, Inputs!$G$99:$G$109)/100 -> 1 | L126: 69 | M126: =SUMIF(TruckImpacts!$A:$A, $D126, TruckImpacts!F:F)*$L126 -> 6.693 | N126: =SUMIF(TruckImpacts!$A:$A, $D126, TruckImpacts!G:G)*$L126 -> 6.555
D127: =TruckImpacts!A$55 -> C8 | E127: =TruckImpacts!B$55 -> F-WATER | F127: =TruckImpacts!C$55 -> Pump Truck | G127: Both | H127: 6 | I127: 0.04109589041 | J127: 6 | K127: =SUMIF(Inputs!$A$99:$A$109, E127, Inputs!$G$99:$G$109)/100 -> 1 | L127: 6 | M127: =SUMIF(TruckImpacts!$A:$A, $D127, TruckImpacts!F:F)*$L127 -> 8.598 | N127: =SUMIF(TruckImpacts!$A:$A, $D127, TruckImpacts!G:G)*$L127 -> 15.666
D128: =TruckImpacts!A$56 -> C9 | E128: =TruckImpacts!B$56 -> RIG | F128: =TruckImpacts!C$56 -> Control Van | G128: Both | H128: 2 | I128: 0.01369863014 | J128: 2 | K128: =SUMIF(Inputs!$A$99:$A$109, E128, Inputs!$G$99:$G$109)/100 -> 1 | L128: 2 | M128: =SUMIF(TruckImpacts!$A:$A, $D128, TruckImpacts!F:F)*$L128 -> 0.884 | N128: =SUMIF(TruckImpacts!$A:$A, $D128, TruckImpacts!G:G)*$L128 -> 1.248
B129: Fracture Water | C129: =TripGen!F25 -> 1968 | D129: =TruckImpacts!A$43 -> C2E | E129: =TruckImpacts!B$43 -> F-WATER | F129: =TruckImpacts!C$43 -> Water - EMPTY | G129: Out | H129: 123 | I129: 0.5 | J129: =I129*C$129 -> 984 | K129: =(SUMIF(Inputs!$A$99:$A$109, E129, Inputs!$G$99:$G$109)/100)*IF(Inputs!$G$78="Yes", 0, 1) -> 1 | L129: 984 | M129: =SUMIF(TruckImpacts!$A:$A, $D129, TruckImpacts!F:F)*$L129 -> 73.8 | N129: =SUMIF(TruckImpacts!$A:$A, $D129, TruckImpacts!G:G)*$L129 -> 76.752
D130: =TruckImpacts!A$44 -> C2F1 | E130: =TruckImpacts!B$44 -> F-WATER | F130: =TruckImpacts!C$44 -> Fresh Water - LOADED | G130: In | H130: 123 | I130: 0.5 | J130: =I130*C$129 -> 984 | K130: =(SUMIF(Inputs!$A$99:$A$109, E130, Inputs!$G$99:$G$109)/100)*IF(Inputs!$G$78="Yes", 0, 1) -> 1 | L130: 984 | M130: =SUMIF(TruckImpacts!$A:$A, $D130, TruckImpacts!F:F)*$L130 -> 1397.28 | N130: =SUMIF(TruckImpacts!$A:$A, $D130, TruckImpacts!G:G)*$L130 -> 2364.552
B131: Fracture Sand | C131: =TripGen!F26 -> 128 | D131: =TruckImpacts!A$46 -> C3E | E131: =TruckImpacts!B$46 -> SAND | F131: =TruckImpacts!C$46 -> Sand Truck - EMPTY | G131: Out | H131: 8 | I131: 0.5 | J131: =I131*C$131 -> 64 | K131: =SUMIF(Inputs!$A$99:$A$109, E131, Inputs!$G$99:$G$109)/100 -> 1 | L131: 64 | M131: =SUMIF(TruckImpacts!$A:$A, $D131, TruckImpacts!F:F)*$L131 -> 6.72 | N131: =SUMIF(TruckImpacts!$A:$A, $D131, TruckImpacts!G:G)*$L131 -> 10.944
D132: =TruckImpacts!A$47 -> C3F | E132: =TruckImpacts!B$47 -> SAND | F132: =TruckImpacts!C$47 -> Sand Truck - LOADED | G132: In | H132: 8 | I132: 0.5 | J132: =I132*C$131 -> 64 | K132: =SUMIF(Inputs!$A$99:$A$109, E132, Inputs!$G$99:$G$109)/100 -> 1 | L132: 64 | M132: =SUMIF(TruckImpacts!$A:$A, $D132, TruckImpacts!F:F)*$L132 -> 163.008 | N132: =SUMIF(TruckImpacts!$A:$A, $D132, TruckImpacts!G:G)*$L132 -> 290.368
B133: Flowback Water Disposal | C133: =TripGen!F27 -> 816 | D133: =TruckImpacts!A$43 -> C2E | E133: =TruckImpacts!B$43 -> F-WATER | F133: =TruckImpacts!C$43 -> Water - EMPTY | G133: In | H133: 51 | I133: 0.5 | J133: =I133*C$133 -> 408 | K133: =SUMIF(Inputs!$A$99:$A$109, E133, Inputs!$G$99:$G$109)/100 -> 1 | L133: 408 | M133: =SUMIF(TruckImpacts!$A:$A, $D133, TruckImpacts!F:F)*$L133 -> 30.6 | N133: =SUMIF(TruckImpacts!$A:$A, $D133, TruckImpacts!G:G)*$L133 -> 31.824
D134: =TruckImpacts!A$45 -> C2F2 | E134: =TruckImpacts!B$45 -> P-WATER | F134: =TruckImpacts!C$45 -> Produced Water - LOADED | G134: Out | H134: 51 | I134: 0.5 | J134: =I134*C$133 -> 408 | K134: =SUMIF(Inputs!$A$99:$A$109, E134, Inputs!$G$99:$G$109)/100 -> 1 | L134: 408 | M134: =SUMIF(TruckImpacts!$A:$A, $D134, TruckImpacts!F:F)*$L134 -> 1270.104 | N134: =SUMIF(TruckImpacts!$A:$A, $D134, TruckImpacts!G:G)*$L134 -> 2271.336
C135: =SUM(C78:C134) -> 4242 | H135: =SUM(H78:H134) -> 798 | J135: =SUM(J78:J134) -> 4240.727273 | L135: =SUM(L78:L134) -> 4242 | M135: =SUM(M78:M134) -> 4688.669 | N135: =SUM(N78:N134) -> 8020.28
M136: Asphalt | N136: Concrete
A138: Vertical Recompletion | B138: Completion Rig | C138: =TripGen!F31 -> 22 | D138: =TruckImpacts!A$42 -> C1 | E138: =TruckImpacts!B$42 -> RIG | F138: =TruckImpacts!C$42 -> Workover Rig | G138: Both | H138: 4 | I138: 0.1875 | J138: =I138*C138 -> 4.125 | K138: =SUMIF(Inputs!$A$99:$A$109, E138, Inputs!$G$99:$G$109)/100 -> 1 | L138: =ROUND(J138*K138, 0) -> 4 | M138: =SUMIF(TruckImpacts!$A:$A, $D138, TruckImpacts!F:F)*$L138 -> 23.104 | N138: =SUMIF(TruckImpacts!$A:$A, $D138, TruckImpacts!G:G)*$L138 -> 53.568
D139: =TruckImpacts!A$59 -> C11 | E139: =TruckImpacts!B$59 -> WORK | F139: =TruckImpacts!C$59 -> Pickup Truck | G139: Both | H139: 18 | I139: 0.8125 | J139: =I139*C138 -> 17.875 | K139: =SUMIF(Inputs!$A$99:$A$109, E139, Inputs!$G$99:$G$109)/100 -> 1 | L139: 18 | M139: =SUMIF(TruckImpacts!$A:$A, $D139, TruckImpacts!F:F)*$L139 -> 0.054 | N139: =SUMIF(TruckImpacts!$A:$A, $D139, TruckImpacts!G:G)*$L139 -> 0.054
B140: Completion Fluid and Materials | C140: =TripGen!F32 -> 192 | D140: =TruckImpacts!A$51 -> C6E | E140: =TruckImpacts!B$51 -> CHEM | F140: =TruckImpacts!C$51 -> Chemical Truck - EMPTY | G140: Out | H140: 7 | I140: 0.2916666667 | J140: =I140*C$140 -> 56 | K140: =SUMIF(Inputs!$A$99:$A$109, E140, Inputs!$G$99:$G$109)/100 -> 1 | L140: 56 | M140: =SUMIF(TruckImpacts!$A:$A, $D140, TruckImpacts!F:F)*$L140 -> 15.848 | N140: =SUMIF(TruckImpacts!$A:$A, $D140, TruckImpacts!G:G)*$L140 -> 14.952
D141: =TruckImpacts!A$52 -> C6F | E141: =TruckImpacts!B$52 -> CHEM | F141: =TruckImpacts!C$52 -> Chemical Truck - LOADED | G141: In | H141: 7 | I141: 0.2916666667 | J141: =I141*C$140 -> 56 | K141: =SUMIF(Inputs!$A$99:$A$109, E141, Inputs!$G$99:$G$109)/100 -> 1 | L141: 56 | M141: =SUMIF(TruckImpacts!$A:$A, $D141, TruckImpacts!F:F)*$L141 -> 131.264 | N141: =SUMIF(TruckImpacts!$A:$A, $D141, TruckImpacts!G:G)*$L141 -> 199.64
D142: =TruckImpacts!A$57 -> C10E | E142: =TruckImpacts!B$57 -> FUEL | F142: =TruckImpacts!C$57 -> Fuel Truck - EMPTY | G142: Out | H142: 5 | I142: 0.2083333333 | J142: 40 | K142: =SUMIF(Inputs!$A$99:$A$109, E142, Inputs!$G$99:$G$109)/100 -> 1 | L142: 40 | M142: =SUMIF(TruckImpacts!$A:$A, $D142, TruckImpacts!F:F)*$L142 -> 11.32 | N142: =SUMIF(TruckImpacts!$A:$A, $D142, TruckImpacts!G:G)*$L142 -> 10.68
D143: =TruckImpacts!A$58 -> C10F | E143: =TruckImpacts!B$58 -> FUEL | F143: =TruckImpacts!C$58 -> Fuel Truck - LOADED | G143: In | H143: 5 | I143: 0.2083333333 | J143: =I143*C$140 -> 40 | K143: =SUMIF(Inputs!$A$99:$A$109, E143, Inputs!$G$99:$G$109)/100 -> 1 | L143: 40 | M143: =SUMIF(TruckImpacts!$A:$A, $D143, TruckImpacts!F:F)*$L143 -> 93.76 | N143: =SUMIF(TruckImpacts!$A:$A, $D143, TruckImpacts!G:G)*$L143 -> 142.6
B144: Completion Equipment | C144: =TripGen!F33 -> 8 | D144: =TruckImpacts!A$48 -> C4E | E144: =TruckImpacts!B$48 -> PIPE | F144: =TruckImpacts!C$48 -> Pipe - EMPTY | G144: Out | H144: 1 | I144: 0.125 | J144: =I144*C$144 -> 1 | K144: =SUMIF(Inputs!$A$99:$A$109, E144, Inputs!$G$99:$G$109)/100 -> 1 | L144: 1 | M144: =SUMIF(TruckImpacts!$A:$A, $D144, TruckImpacts!F:F)*$L144 -> 0.088 | N144: =SUMIF(TruckImpacts!$A:$A, $D144, TruckImpacts!G:G)*$L144 -> 0.091
D145: =TruckImpacts!A$49 -> C4F | E145: =TruckImpacts!B$49 -> PIPE | F145: =TruckImpacts!C$49 -> Pipe - LOADED | G145: In | H145: 1 | I145: 0.125 | J145: =I145*C$144 -> 1 | K145: =SUMIF(Inputs!$A$99:$A$109, E145, Inputs!$G$99:$G$109)/100 -> 1 | L145: 1 | M145: =SUMIF(TruckImpacts!$A:$A, $D145, TruckImpacts!F:F)*$L145 -> 2.443 | N145: =SUMIF(TruckImpacts!$A:$A, $D145, TruckImpacts!G:G)*$L145 -> 4.281
D146: =TruckImpacts!A$60 -> C12 | E146: =TruckImpacts!B$60 -> CHEM | F146: =TruckImpacts!C$60 -> Acid Pump | G146: Both | H146: 4 | I146: 0.5 | J146: 4 | K146: =SUMIF(Inputs!$A$99:$A$109, E146, Inputs!$G$99:$G$109)/100 -> 1 | L146: 4 | M146: =SUMIF(TruckImpacts!$A:$A, $D146, TruckImpacts!F:F)*$L146 -> 9.292 | N146: =SUMIF(TruckImpacts!$A:$A, $D146, TruckImpacts!G:G)*$L146 -> 16.216
D147: =TruckImpacts!A$50 -> C5 | E147: =TruckImpacts!B$50 -> RIG | F147: =TruckImpacts!C$50 -> Wireline | G147: Both | H147: 2 | I147: 0.25 | J147: 2 | K147: =SUMIF(Inputs!$A$99:$A$109, E147, Inputs!$G$99:$G$109)/100 -> 1 | L147: 2 | M147: =SUMIF(TruckImpacts!$A:$A, $D147, TruckImpacts!F:F)*$L147 -> 4.688 | N147: =SUMIF(TruckImpacts!$A:$A, $D147, TruckImpacts!G:G)*$L147 -> 7.13
B148: Fracturing Equipment | C148: =TripGen!F34 -> 146 | D148: =TruckImpacts!A$53 -> C7E | E148: =TruckImpacts!B$53 -> RIG | F148: =TruckImpacts!C$53 -> Frac Tank - EMPTY | G148: Out | H148: 69 | I148: 0.4726027397 | J148: =I148*C$148 -> 69 | K148: =SUMIF(Inputs!$A$99:$A$109, E148, Inputs!$G$99:$G$109)/100 -> 1 | L148: 69 | M148: =SUMIF(TruckImpacts!$A:$A, $D148, TruckImpacts!F:F)*$L148 -> 6.141 | N148: =SUMIF(TruckImpacts!$A:$A, $D148, TruckImpacts!G:G)*$L148 -> 5.796
D149: =TruckImpacts!A$54 -> C7F | E149: =TruckImpacts!B$54 -> RIG | F149: =TruckImpacts!C$54 -> Frac Tank - LOADED | G149: In | H149: 69 | I149: 0.4726027397 | J149: =I149*C$148 -> 69 | K149: =SUMIF(Inputs!$A$99:$A$109, E149, Inputs!$G$99:$G$109)/100 -> 1 | L149: 69 | M149: =SUMIF(TruckImpacts!$A:$A, $D149, TruckImpacts!F:F)*$L149 -> 6.693 | N149: =SUMIF(TruckImpacts!$A:$A, $D149, TruckImpacts!G:G)*$L149 -> 6.555
D150: =TruckImpacts!A$55 -> C8 | E150: =TruckImpacts!B$55 -> F-WATER | F150: =TruckImpacts!C$55 -> Pump Truck | G150: Both | H150: 6 | I150: 0.04109589041 | J150: 6 | K150: =SUMIF(Inputs!$A$99:$A$109, E150, Inputs!$G$99:$G$109)/100 -> 1 | L150: 6 | M150: =SUMIF(TruckImpacts!$A:$A, $D150, TruckImpacts!F:F)*$L150 -> 8.598 | N150: =SUMIF(TruckImpacts!$A:$A, $D150, TruckImpacts!G:G)*$L150 -> 15.666
D151: =TruckImpacts!A$56 -> C9 | E151: =TruckImpacts!B$56 -> RIG | F151: =TruckImpacts!C$56 -> Control Van | G151: Both | H151: 2 | I151: 0.01369863014 | J151: =I151*C$148 -> 2 | K151: =SUMIF(Inputs!$A$99:$A$109, E151, Inputs!$G$99:$G$109)/100 -> 1 | L151: 2 | M151: =SUMIF(TruckImpacts!$A:$A, $D151, TruckImpacts!F:F)*$L151 -> 0.884 | N151: =SUMIF(TruckImpacts!$A:$A, $D151, TruckImpacts!G:G)*$L151 -> 1.248
B152: Fracture Water | C152: =TripGen!F35 -> 1968 | D152: =TruckImpacts!A$43 -> C2E | E152: =TruckImpacts!B$43 -> F-WATER | F152: =TruckImpacts!C$43 -> Water - EMPTY | G152: Out | H152: 123 | I152: 0.5 | J152: =I152*C$152 -> 984 | K152: =(SUMIF(Inputs!$A$99:$A$109, E152, Inputs!$G$99:$G$109)/100)*IF(Inputs!$G$78="Yes", 0, 1) -> 1 | L152: 984 | M152: =SUMIF(TruckImpacts!$A:$A, $D152, TruckImpacts!F:F)*$L152 -> 73.8 | N152: =SUMIF(TruckImpacts!$A:$A, $D152, TruckImpacts!G:G)*$L152 -> 76.752
D153: =TruckImpacts!A$44 -> C2F1 | E153: =TruckImpacts!B$44 -> F-WATER | F153: =TruckImpacts!C$44 -> Fresh Water - LOADED | G153: In | H153: 123 | I153: 0.5 | J153: =I153*C$152 -> 984 | K153: =(SUMIF(Inputs!$A$99:$A$109, E153, Inputs!$G$99:$G$109)/100)*IF(Inputs!$G$78="Yes", 0, 1) -> 1 | L153: 984 | M153: =SUMIF(TruckImpacts!$A:$A, $D153, TruckImpacts!F:F)*$L153 -> 1397.28 | N153: =SUMIF(TruckImpacts!$A:$A, $D153, TruckImpacts!G:G)*$L153 -> 2364.552
B154: Fracture Sand | C154: =TripGen!F36 -> 128 | D154: =TruckImpacts!A$46 -> C3E | E154: =TruckImpacts!B$46 -> SAND | F154: =TruckImpacts!C$46 -> Sand Truck - EMPTY | G154: Out | H154: 8 | I154: 0.5 | J154: =I154*C$154 -> 64 | K154: =SUMIF(Inputs!$A$99:$A$109, E154, Inputs!$G$99:$G$109)/100 -> 1 | L154: 64 | M154: =SUMIF(TruckImpacts!$A:$A, $D154, TruckImpacts!F:F)*$L154 -> 6.72 | N154: =SUMIF(TruckImpacts!$A:$A, $D154, TruckImpacts!G:G)*$L154 -> 10.944
D155: =TruckImpacts!A$47 -> C3F | E155: =TruckImpacts!B$47 -> SAND | F155: =TruckImpacts!C$47 -> Sand Truck - LOADED | G155: In | H155: 8 | I155: 0.5 | J155: =I155*C$154 -> 64 | K155: =SUMIF(Inputs!$A$99:$A$109, E155, Inputs!$G$99:$G$109)/100 -> 1 | L155: 64 | M155: =SUMIF(TruckImpacts!$A:$A, $D155, TruckImpacts!F:F)*$L155 -> 163.008 | N155: =SUMIF(TruckImpacts!$A:$A, $D155, TruckImpacts!G:G)*$L155 -> 290.368
B156: Flowback Water Disposal | C156: =TripGen!F37 -> 816 | D156: =TruckImpacts!A$43 -> C2E | E156: =TruckImpacts!B$43 -> F-WATER | F156: =TruckImpacts!C$43 -> Water - EMPTY | G156: In | H156: 51 | I156: 0.5 | J156: =I156*C$156 -> 408 | K156: =SUMIF(Inputs!$A$99:$A$109, E156, Inputs!$G$99:$G$109)/100 -> 1 | L156: 408 | M156: =SUMIF(TruckImpacts!$A:$A, $D156, TruckImpacts!F:F)*$L156 -> 30.6 | N156: =SUMIF(TruckImpacts!$A:$A, $D156, TruckImpacts!G:G)*$L156 -> 31.824
D157: =TruckImpacts!A$45 -> C2F2 | E157: =TruckImpacts!B$45 -> P-WATER | F157: =TruckImpacts!C$45 -> Produced Water - LOADED | G157: Out | H157: 51 | I157: 0.5 | J157: =I157*C$156 -> 408 | K157: =SUMIF(Inputs!$A$99:$A$109, E157, Inputs!$G$99:$G$109)/100 -> 1 | L157: 408 | M157: =SUMIF(TruckImpacts!$A:$A, $D157, TruckImpacts!F:F)*$L157 -> 1270.104 | N157: =SUMIF(TruckImpacts!$A:$A, $D157, TruckImpacts!G:G)*$L157 -> 2271.336
C158: =SUM(C138:C157) -> 3280 | H158: =SUM(H138:H157) -> 564 | J158: =SUM(J138:J157) -> 3280 | L158: =SUM(L138:L157) -> 3280 | M158: =SUM(M138:M157) -> 3255.689 | N158: 5524.253
M159: Asphalt | N159: Concrete
L161: DEV VALUES TO USE
L162: Mod | M162: Asphalt | N162: Concrete
L163: =IF(Inputs!$G76="Horizontal", L59, IF(Inputs!$G76="Vertical", L135, IF(Inputs!$G76="Recompletion", L158, 0))) -> 12370 | M163: =IF(Inputs!$G76="Horizontal", M59, IF(Inputs!$G76="Vertical", M135, IF(Inputs!$G76="Recompletion", M158, 0))) -> 12625.292 | N163: =IF(Inputs!$G76="Horizontal", N59, IF(Inputs!$G76="Vertical", N135, IF(Inputs!$G76="Recompletion", N158, 0))) -> 21564.039

Sheet RoadwayConstants (hidden)
A1: LOC | B1: TOPO | C1: CLASS | D1: REGION | E1: Reliability | F1: Std Normal Deviate | G1: Resilient Modulus | H1: K-Value | I1: Serv Loss | J1: ESALs HMA | K1: ESALs PCCP | L1: SN HMA | M1: Thick PCCP
A2: Urban | B2: Plains | C2: Interstate | D2: R1 | E2: 95 | F2: -1.645 | G2: 7800 | H2: 125 | I2: 2 | J2: 41225509.27 | K2: 69162413.87 | L2: 5.93 | M2: 13.25
A3: Urban | B3: Mountains | C3: Interstate | D3: R1 | E3: 95 | F3: -1.645 | G3: 25000 | H3: 250 | I3: 2
A4: Rural | B4: Plains | C4: Interstate | D4: R1 | E4: 95 | F4: -1.645 | G4: 7800 | H4: 125 | I4: 2 | J4: 21123880 | K4: 33343201.95 | L4: 5.43 | M4: 11.75
A5: Rural | B5: Mountains | C5: Interstate | D5: R1 | E5: 95 | F5: -1.645 | G5: 25000 | H5: 250 | I5: 2 | J5: 16037300.14 | K5: 24669916.75 | L5: 3.7 | M5: 11
A6: Urban | B6: Plains | C6: Principal Arterial | D6: R1 | E6: 95 | F6: -1.645 | G6: 7800 | H6: 125 | I6: 2 | J6: 14904244.57 | K6: 23204954.61 | L6: 5.18 | M6: 11
A7: Urban | B7: Mountains | C7: Principal Arterial | D7: R1 | E7: 95 | F7: -1.645 | G7: 25000 | H7: 250 | I7: 2
A8: Rural | B8: Plains | C8: Principal Arterial | D8: R1 | E8: 95 | F8: -1.645 | G8: 7800 | H8: 125 | I8: 2 | J8: 13119668.11 | L8: 5.09
A9: Rural | B9: Mountains | C9: Principal Arterial | D9: R1 | E9: 95 | F9: -1.645 | G9: 25000 | H9: 250 | I9: 2
A10: Urban | B10: Plains | C10: Principal Arterial - Others | D10: R1 | E10: 95 | F10: -1.645 | G10: 7800 | H10: 125 | I10: 2 | J10: 5137528.692 | K10: 8403349.814 | L10: 4.47 | M10: 9.5
A11: Urban | B11: Mountains | C11: Principal Arterial - Others | D11: R1 | E11: 95 | F11: -1.645 | G11: 25000 | H11: 250 | I11: 2
A12: Rural | B12: Plains | C12: Principal Arterial - Others | D12: R1 | E12: 95 | F12: -1.645 | G12: 7800 | H12: 125 | I12: 2 | J12: 3556295.178 | K12: 7157386.125 | L12: 4.24 | M12: 9.25
A13: Rural | B13: Mountains | C13: Principal Arterial - Others | D13: R1 | E13: 95 | F13: -1.645 | G13: 25000 | H13: 250 | I13: 2 | J13: 3307053.231 | K13: 8878967.546 | L13: 2.77 | M13: 9.25
A14: Urban | B14: Plains | C14: Minor Arterial | D14: R1 | E14: 95 | F14: -1.645 | G14: 7800 | H14: 125 | I14: 2 | J14: 3231454.418 | K14: 5419470.597 | L14: 4.18 | M14: 8.75
A15: Urban | B15: Mountains | C15: Minor Arterial | D15: R1 | E15: 95 | F15: -1.645 | G15: 25000 | H15: 250 | I15: 2 | J15: 1550946.367 | K15: 829801.1499 | L15: 2.46 | M15: 6
A16: Rural | B16: Plains | C16: Minor Arterial | D16: R1 | E16: 95 | F16: -1.645 | G16: 7800 | H16: 125 | I16: 2 | J16: 2060232.358 | L16: 3.91
A17: Rural | B17: Mountains | C17: Minor Arterial | D17: R1 | E17: 95 | F17: -1.645 | G17: 25000 | H17: 250 | I17: 2 | J17: 1406336.353 | K17: 4640338.511 | L17: 2.42 | M17: 8.25
A18: Urban | B18: Plains | C18: Major Collector | D18: R1 | E18: 90 | F18: -1.282 | G18: 7800 | H18: 125 | I18: 2 | J18: 740773.1298 | L18: 3.16
A19: Urban | B19: Mountains | C19: Major Collector | D19: R1 | E19: 90 | F19: -1.282 | G19: 25000 | H19: 250 | I19: 2
A20: Rural | B20: Plains | C20: Major Collector | D20: R1 | E20: 90 | F20: -1.282 | G20: 7800 | H20: 125 | I20: 2 | J20: 1679944.532 | L20: 3.59
A21: Rural | B21: Mountains | C21: Major Collector | D21: R1 | E21: 90 | F21: -1.282 | G21: 25000 | H21: 250 | I21: 2 | J21: 374168.4898 | L21: 1.83
A22: Urban | B22: Plains | C22: Minor Collector | D22: R1 | E22: 90 | F22: -1.282 | G22: 7800 | H22: 125 | I22: 2.5
A23: Urban | B23: Mountains | C23: Minor Collector | D23: R1 | E23: 90 | F23: -1.282 | G23: 25000 | H23: 250 | I23: 2.5
A24: Rural | B24: Plains | C24: Minor Collector | D24: R1 | E24: 90 | F24: -1.282 | G24: 7800 | H24: 125 | I24: 2.5 | J24: 543105.051 | L24: 2.93
A25: Rural | B25: Mountains | C25: Minor Collector | D25: R1 | E25: 90 | F25: -1.282 | G25: 25000 | H25: 250 | I25: 2.5 | J25: 287894.5682 | L25: 1.74
A26: Urban | B26: Plains | C26: Local | D26: R1 | E26: 80 | F26: -0.841 | G26: 7800 | H26: 125 | I26: 2.5
A27: Urban | B27: Mountains | C27: Local | D27: R1 | E27: 80 | F27: -0.841 | G27: 25000 | H27: 250 | I27: 2.5
A28: Rural | B28: Plains | C28: Local | D28: R1 | E28: 80 | F28: -0.841 | G28: 7800 | H28: 125 | I28: 2.5 | J28: 69169.93803 | L28: 1.99
A29: Rural | B29: Mountains | C29: Local | D29: R1 | E29: 80 | F29: -0.841 | G29: 25000 | H29: 250 | I29: 2.5
A30: Urban | B30: Plains | C30: Interstate | D30: R2 | E30: 95 | F30: -1.645 | G30: 7800 | H30: 125 | I30: 2 | J30: 24794357.16 | K30: 48464345.67 | L30: 5.55 | M30: 12.25
A31: Urban | B31: Mountains | C31: Interstate | D31: R2 | E31: 95 | F31: -1.645 | G31: 25000 | H31: 250 | I31: 2
A32: Rural | B32: Plains | C32: Interstate | D32: R2 | E32: 95 | F32: -1.645 | G32: 7800 | H32: 125 | I32: 2 | J32: 12529324.71 | L32: 5.06
A33: Rural | B33: Mountains | C33: Interstate | D33: R2 | E33: 95 | F33: -1.645 | G33: 25000 | H33: 250 | I33: 2
A34: Urban | B34: Plains | C34: Principal Arterial | D34: R2 | E34: 95 | F34: -1.645 | G34: 7800 | H34: 125 | I34: 2 | J34: 8124995.379 | K34: 12628287.73 | L34: 4.77 | M34: 10
A35: Urban | B35: Mountains | C35: Principal Arterial | D35: R2 | E35: 95 | F35: -1.645 | G35: 25000 | H35: 250 | I35: 2 | J35: 7137710.591 | L35: 3.13
A36: Rural | B36: Plains | C36: Principal Arterial | D36: R2 | E36: 95 | F36: -1.645 | G36: 7800 | H36: 125 | I36: 2
A37: Rural | B37: Mountains | C37: Principal Arterial | D37: R2 | E37: 95 | F37: -1.645 | G37: 25000 | H37: 250 | I37: 2
A38: Urban | B38: Plains | C38: Principal Arterial - Others | D38: R2 | E38: 95 | F38: -1.645 | G38: 7800 | H38: 125 | I38: 2 | J38: 3826673.044 | K38: 2126100.553 | L38: 4.28 | M38: 7.5
A39: Urban | B39: Mountains | C39: Principal Arterial - Others | D39: R2 | E39: 95 | F39: -1.645 | G39: 25000 | H39: 250 | I39: 2 | J39: 4460576.04 | L39: 2.91
A40: Rural | B40: Plains | C40: Principal Arterial - Others | D40: R2 | E40: 95 | F40: -1.645 | G40: 7800 | H40: 125 | I40: 2 | J40: 3658426.992 | K40: 17093998.93 | L40: 4.26 | M40: 10.5
A41: Rural | B41: Mountains | C41: Principal Arterial - Others | D41: R2 | E41: 95 | F41: -1.645 | G41: 25000 | H41: 250 | I41: 2 | J41: 3006165.985 | L41: 2.73
A42: Urban | B42: Plains | C42: Minor Arterial | D42: R2 | E42: 95 | F42: -1.645 | G42: 7800 | H42: 125 | I42: 2 | J42: 944941.516 | L42: 3.48
A43: Urban | B43: Mountains | C43: Minor Arterial | D43: R2 | E43: 95 | F43: -1.645 | G43: 25000 | H43: 250 | I43: 2 | J43: 1267536.138 | L43: 2.38
A44: Rural | B44: Plains | C44: Minor Arterial | D44: R2 | E44: 95 | F44: -1.645 | G44: 7800 | H44: 125 | I44: 2 | J44: 1090432.524 | L44: 3.55
A45: Rural | B45: Mountains | C45: Minor Arterial | D45: R2 | E45: 95 | F45: -1.645 | G45: 25000 | H45: 250 | I45: 2 | J45: 721772.2312 | L45: 2.17
A46: Urban | B46: Plains | C46: Major Collector | D46: R2 | E46: 90 | F46: -1.282 | G46: 7800 | H46: 125 | I46: 2 | J46: 531929.9193 | L46: 3
A47: Urban | B47: Mountains | C47: Major Collector | D47: R2 | E47: 90 | F47: -1.282 | G47: 25000 | H47: 250 | I47: 2
A48: Rural | B48: Plains | C48: Major Collector | D48: R2 | E48: 90 | F48: -1.282 | G48: 7800 | H48: 125 | I48: 2 | J48: 454704.0447 | K48: 300395.1594 | L48: 2.93 | M48: 5.00*
A49: Rural | B49: Mountains | C49: Major Collector | D49: R2 | E49: 90 | F49: -1.282 | G49: 25000 | H49: 250 | I49: 2 | J49: 639982.6487 | L49: 2
A50: Urban | B50: Plains | C50: Minor Collector | D50: R2 | E50: 90 | F50: -1.282 | G50: 7800 | H50: 125 | I50: 2.5
A51: Urban | B51: Mountains | C51: Minor Collector | D51: R2 | E51: 90 | F51: -1.282 | G51: 25000 | H51: 250 | I51: 2.5
A52: Rural | B52: Plains | C52: Minor Collector | D52: R2 | E52: 90 | F52: -1.282 | G52: 7800 | H52: 125 | I52: 2.5 | J52: 138379.5605 | L52: 2.39
A53: Rural | B53: Mountains | C53: Minor Collector | D53: R2 | E53: 90 | F53: -1.282 | G53: 25000 | H53: 250 | I53: 2.5 | J53: 212073.522 | L53: 1.65
A54: Urban | B54: Plains | C54: Local | D54: R2 | E54: 80 | F54: -0.841 | G54: 7800 | H54: 125 | I54: 2.5
A55: Urban | B55: Mountains | C55: Local | D55: R2 | E55: 80 | F55: -0.841 | G55: 25000 | H55: 250 | I55: 2.5
A56: Rural | B56: Plains | C56: Local | D56: R2 | E56: 80 | F56: -0.841 | G56: 7800 | H56: 125 | I56: 2.5
A57: Rural | B57: Mountains | C57: Local | D57: R2 | E57: 80 | F57: -0.841 | G57: 25000 | H57: 250 | I57: 2.5
A58: Urban | B58: Plains | C58: Interstate | D58: R3 | E58: 95 | F58: -1.645 | G58: 8800 | H58: 175 | I58: 2 | J58: 14303878.88 | L58: 4.96
A59: Urban | B59: Mountains | C59: Interstate | D59: R3 | E59: 95 | F59: -1.645 | G59: 25000 | H59: 250 | I59: 2 | J59: 14999191.52 | K59: 19649107.87 | L59: 3.51 | M59: 10.5
A60: Rural | B60: Plains | C60: Interstate | D60: R3 | E60: 95 | F60: -1.645 | G60: 8800 | H60: 175 | I60: 2 | J60: 13729143.36 | K60: 23429679.53 | L60: 4.93 | M60: 11
A61: Rural | B61: Mountains | C61: Interstate | D61: R3 | E61: 95 | F61: -1.645 | G61: 25000 | H61: 250 | I61: 2 | J61: 13566980.93 | K61: 19224498.5 | L61: 3.45 | M61: 10.5
A62: Urban | B62: Plains | C62: Principal Arterial | D62: R3 | E62: 95 | F62: -1.645 | G62: 8800 | H62: 175 | I62: 2
A63: Urban | B63: Mountains | C63: Principal Arterial | D63: R3 | E63: 95 | F63: -1.645 | G63: 25000 | H63: 250 | I63: 2 | J63: 3498379.74 | L63: 2.8
A64: Rural | B64: Plains | C64: Principal Arterial | D64: R3 | E64: 95 | F64: -1.645 | G64: 8800 | H64: 175 | I64: 2
A65: Rural | B65: Mountains | C65: Principal Arterial | D65: R3 | E65: 95 | F65: -1.645 | G65: 25000 | H65: 250 | I65: 2
A66: Urban | B66: Plains | C66: Principal Arterial - Others | D66: R3 | E66: 95 | F66: -1.645 | G66: 8800 | H66: 175 | I66: 2 | J66: 4159109.402 | K66: 6119289.409 | L66: 4.16 | M66: 9
A67: Urban | B67: Mountains | C67: Principal Arterial - Others | D67: R3 | E67: 95 | F67: -1.645 | G67: 25000 | H67: 250 | I67: 2 | J67: 2943067.763 | K67: 6350062.228 | L67: 2.72 | M67: 8.75
A68: Rural | B68: Plains | C68: Principal Arterial - Others | D68: R3 | E68: 95 | F68: -1.645 | G68: 8800 | H68: 175 | I68: 2 | J68: 2572820.093 | L68: 3.88
A69: Rural | B69: Mountains | C69: Principal Arterial - Others | D69: R3 | E69: 95 | F69: -1.645 | G69: 25000 | H69: 250 | I69: 2 | J69: 2431662.624 | L69: 2.64
A70: Urban | B70: Plains | C70: Minor Arterial | D70: R3 | E70: 95 | F70: -1.645 | G70: 8800 | H70: 175 | I70: 2 | J70: 1816911.327 | L70: 3.68
A71: Urban | B71: Mountains | C71: Minor Arterial | D71: R3 | E71: 95 | F71: -1.645 | G71: 25000 | H71: 250 | I71: 2
A72: Rural | B72: Plains | C72: Minor Arterial | D72: R3 | E72: 95 | F72: -1.645 | G72: 8800 | H72: 175 | I72: 2
A73: Rural | B73: Mountains | C73: Minor Arterial | D73: R3 | E73: 95 | F73: -1.645 | G73: 25000 | H73: 250 | I73: 2 | J73: 760115.3144 | L73: 2.19
A74: Urban | B74: Plains | C74: Major Collector | D74: R3 | E74: 90 | F74: -1.282 | G74: 8800 | H74: 175 | I74: 2 | J74: 2070074.094 | L74: 3.41
A75: Urban | B75: Mountains | C75: Major Collector | D75: R3 | E75: 90 | F75: -1.282 | G75: 25000 | H75: 250 | I75: 2 | J75: 1226296.092 | L75: 2.23
A76: Rural | B76: Plains | C76: Major Collector | D76: R3 | E76: 90 | F76: -1.282 | G76: 8800 | H76: 175 | I76: 2 | J76: 778552.6943 | L76: 2.97
A77: Rural | B77: Mountains | C77: Major Collector | D77: R3 | E77: 90 | F77: -1.282 | G77: 25000 | H77: 250 | I77: 2 | J77: 701247.4509 | K77: 965521.8544 | L77: 2.03 | M77: 5.75
A78: Urban | B78: Plains | C78: Minor Collector | D78: R3 | E78: 90 | F78: -1.282 | G78: 8800 | H78: 175 | I78: 2.5
A79: Urban | B79: Mountains | C79: Minor Collector | D79: R3 | E79: 90 | F79: -1.282 | G79: 25000 | H79: 250 | I79: 2.5
A80: Rural | B80: Plains | C80: Minor Collector | D80: R3 | E80: 90 | F80: -1.282 | G80: 8800 | H80: 175 | I80: 2.5
A81: Rural | B81: Mountains | C81: Minor Collector | D81: R3 | E81: 90 | F81: -1.282 | G81: 25000 | H81: 250 | I81: 2.5 | J81: 144498.8975 | L81: 1.54
A82: Urban | B82: Plains | C82: Local | D82: R3 | E82: 80 | F82: -0.841 | G82: 8800 | H82: 175 | I82: 2.5
A83: Urban | B83: Mountains | C83: Local | D83: R3 | E83: 80 | F83: -0.841 | G83: 25000 | H83: 250 | I83: 2.5
A84: Rural | B84: Plains | C84: Local | D84: R3 | E84: 80 | F84: -0.841 | G84: 8800 | H84: 175 | I84: 2.5
A85: Rural | B85: Mountains | C85: Local | D85: R3 | E85: 80 | F85: -0.841 | G85: 25000 | H85: 250 | I85: 2.5
A86: Urban | B86: Plains | C86: Interstate | D86: R4 | E86: 95 | F86: -1.645 | G86: 7800 | H86: 125 | I86: 2 | J86: 18579164.41 | K86: 46753639.77 | L86: 5.34 | M86: 12.25
A87: Urban | B87: Mountains | C87: Interstate | D87: R4 | E87: 95 | F87: -1.645 | G87: 25000 | H87: 250 | I87: 2
A88: Rural | B88: Plains | C88: Interstate | D88: R4 | E88: 95 | F88: -1.645 | G88: 7800 | H88: 125 | I88: 2 | J88: 14879876.36 | K88: 24623861 | L88: 5.18 | M88: 11.25
A89: Rural | B89: Mountains | C89: Interstate | D89: R4 | E89: 95 | F89: -1.645 | G89: 25000 | H89: 250 | I89: 2
A90: Urban | B90: Plains | C90: Principal Arterial | D90: R4 | E90: 95 | F90: -1.645 | G90: 7800 | H90: 125 | I90: 2 | J90: 8844608.778 | K90: 7969472.151 | L90: 4.83 | M90: 9.25
A91: Urban | B91: Mountains | C91: Principal Arterial | D91: R4 | E91: 95 | F91: -1.645 | G91: 25000 | H91: 250 | I91: 2 | J91: 7502156.399 | K91: 11361775.45 | L91: 3.15 | M91: 9.75
A92: Rural | B92: Plains | C92: Principal Arterial | D92: R4 | E92: 95 | F92: -1.645 | G92: 7800 | H92: 125 | I92: 2 | J92: 8193530.367 | K92: 3582431.334 | L92: 4.77 | M92: 8.25
A93: Rural | B93: Mountains | C93: Principal Arterial | D93: R4 | E93: 95 | F93: -1.645 | G93: 25000 | H93: 250 | I93: 2
A94: Urban | B94: Plains | C94: Principal Arterial - Others | D94: R4 | E94: 95 | F94: -1.645 | G94: 7800 | H94: 125 | I94: 2
A95: Urban | B95: Mountains | C95: Principal Arterial - Others | D95: R4 | E95: 95 | F95: -1.645 | G95: 25000 | H95: 250 | I95: 2 | J95: 3133894.248 | K95: 7854895.304 | L95: 2.75 | M95: 9
A96: Rural | B96: Plains | C96: Principal Arterial - Others | D96: R4 | E96: 95 | F96: -1.645 | G96: 7800 | H96: 125 | I96: 2 | J96: 3467029.051 | K96: 13238864.22 | L96: 4.22 | M96: 10
A97: Rural | B97: Mountains | C97: Principal Arterial - Others | D97: R4 | E97: 95 | F97: -1.645 | G97: 25000 | H97: 250 | I97: 2 | J97: 3276805.769 | K97: 8757033.208 | L97: 2.77 | M97: 9.25
A98: Urban | B98: Plains | C98: Minor Arterial | D98: R4 | E98: 95 | F98: -1.645 | G98: 7800 | H98: 125 | I98: 2
A99: Urban | B99: Mountains | C99: Minor Arterial | D99: R4 | E99: 95 | F99: -1.645 | G99: 25000 | H99: 250 | I99: 2 | J99: 1191445.238 | K99: 2158673.522 | L99: 2.35 | M99: 7.25
A100: Rural | B100: Plains | C100: Minor Arterial | D100: R4 | E100: 95 | F100: -1.645 | G100: 7800 | H100: 125 | I100: 2
A101: Rural | B101: Mountains | C101: Minor Arterial | D101: R4 | E101: 95 | F101: -1.645 | G101: 25000 | H101: 250 | I101: 2 | J101: 634776.0532 | L101: 2.13
A102: Urban | B102: Plains | C102: Major Collector | D102: R4 | E102: 90 | F102: -1.282 | G102: 7800 | H102: 125 | I102: 2 | J102: 1596289.782 | L102: 3.56
A103: Urban | B103: Mountains | C103: Major Collector | D103: R4 | E103: 90 | F103: -1.282 | G103: 25000 | H103: 250 | I103: 2 | J103: 2498927.71 | L103: 2.5
A104: Rural | B104: Plains | C104: Major Collector | D104: R4 | E104: 90 | F104: -1.282 | G104: 7800 | H104: 125 | I104: 2 | J104: 918757.738 | L104: 3.27
A105: Rural | B105: Mountains | C105: Major Collector | D105: R4 | E105: 90 | F105: -1.282 | G105: 25000 | H105: 250 | I105: 2 | J105: 1849444.612 | L105: 2.38
A106: Urban | B106: Plains | C106: Minor Collector | D106: R4 | E106: 90 | F106: -1.282 | G106: 7800 | H106: 125 | I106: 2.5
A107: Urban | B107: Mountains | C107: Minor Collector | D107: R4 | E107: 90 | F107: -1.282 | G107: 25000 | H107: 250 | I107: 2.5
A108: Rural | B108: Plains | C108: Minor Collector | D108: R4 | E108: 90 | F108: -1.282 | G108: 7800 | H108: 125 | I108: 2.5 | J108: 461164.6677 | L108: 2.86
A109: Rural | B109: Mountains | C109: Minor Collector | D109: R4 | E109: 90 | F109: -1.282 | G109: 25000 | H109: 250 | I109: 2.5 | J109: 62177.54384 | L109: 1.32
A110: Urban | B110: Plains | C110: Local | D110: R4 | E110: 80 | F110: -0.841 | G110: 7800 | H110: 125 | I110: 2.5
A111: Urban | B111: Mountains | C111: Local | D111: R4 | E111: 80 | F111: -0.841 | G111: 25000 | H111: 250 | I111: 2.5
A112: Rural | B112: Plains | C112: Local | D112: R4 | E112: 80 | F112: -0.841 | G112: 7800 | H112: 125 | I112: 2.5 | J112: 604980.9933 | L112: 2.79
A113: Rural | B113: Mountains | C113: Local | D113: R4 | E113: 80 | F113: -0.841 | G113: 25000 | H113: 250 | I113: 2.5
A114: Urban | B114: Plains | C114: Interstate | D114: R5 | E114: 95 | F114: -1.645 | G114: 8800 | H114: 175 | I114: 2
A115: Urban | B115: Mountains | C115: Interstate | D115: R5 | E115: 95 | F115: -1.645 | G115: 25000 | H115: 250 | I115: 2
A116: Rural | B116: Plains | C116: Interstate | D116: R5 | E116: 95 | F116: -1.645 | G116: 8800 | H116: 175 | I116: 2
A117: Rural | B117: Mountains | C117: Interstate | D117: R5 | E117: 95 | F117: -1.645 | G117: 25000 | H117: 250 | I117: 2
A118: Urban | B118: Plains | C118: Principal Arterial | D118: R5 | E118: 95 | F118: -1.645 | G118: 8800 | H118: 175 | I118: 2 | J118: 3259732.513 | K118: 4157271.183 | L118: 4.02 | M118: 8.5
A119: Urban | B119: Mountains | C119: Principal Arterial | D119: R5 | E119: 95 | F119: -1.645 | G119: 25000 | H119: 250 | I119: 2 | J119: 3922137.069 | K119: 6226763.435 | L119: 2.85 | M119: 8.75
A120: Rural | B120: Plains | C120: Principal Arterial | D120: R5 | E120: 95 | F120: -1.645 | G120: 8800 | H120: 175 | I120: 2 | J120: 2567408.472 | L120: 3.88
A121: Rural | B121: Mountains | C121: Principal Arterial | D121: R5 | E121: 95 | F121: -1.645 | G121: 25000 | H121: 250 | I121: 2 | J121: 2621243.66 | K121: 4935177.801 | L121: 2.67 | M121: 8.5
A122: Urban | B122: Plains | C122: Principal Arterial - Others | D122: R5 | E122: 95 | F122: -1.645 | G122: 8800 | H122: 175 | I122: 2
A123: Urban | B123: Mountains | C123: Principal Arterial - Others | D123: R5 | E123: 95 | F123: -1.645 | G123: 25000 | H123: 250 | I123: 2
A124: Rural | B124: Plains | C124: Principal Arterial - Others | D124: R5 | E124: 95 | F124: -1.645 | G124: 8800 | H124: 175 | I124: 2
A125: Rural | B125: Mountains | C125: Principal Arterial - Others | D125: R5 | E125: 95 | F125: -1.645 | G125: 25000 | H125: 250 | I125: 2
A126: Urban | B126: Plains | C126: Minor Arterial | D126: R5 | E126: 95 | F126: -1.645 | G126: 8800 | H126: 175 | I126: 2
A127: Urban | B127: Mountains | C127: Minor Arterial | D127: R5 | E127: 95 | F127: -1.645 | G127: 25000 | H127: 250 | I127: 2 | J127: 862074.2907 | L127: 2.23
A128: Rural | B128: Plains | C128: Minor Arterial | D128: R5 | E128: 95 | F128: -1.645 | G128: 8800 | H128: 175 | I128: 2 | J128: 682182.6205 | L128: 3.16
A129: Rural | B129: Mountains | C129: Minor Arterial | D129: R5 | E129: 95 | F129: -1.645 | G129: 25000 | H129: 250 | I129: 2 | J129: 719941.4392 | K129: 665433.2154 | L129: 2.17 | M129: 5.75
A130: Urban | B130: Plains | C130: Major Collector | D130: R5 | E130: 90 | F130: -1.282 | G130: 8800 | H130: 175 | I130: 2
A131: Urban | B131: Mountains | C131: Major Collector | D131: R5 | E131: 90 | F131: -1.282 | G131: 25000 | H131: 250 | I131: 2
A132: Rural | B132: Plains | C132: Major Collector | D132: R5 | E132: 90 | F132: -1.282 | G132: 8800 | H132: 175 | I132: 2 | J132: 285405.2743 | L132: 2.6
A133: Rural | B133: Mountains | C133: Major Collector | D133: R5 | E133: 90 | F133: -1.282 | G133: 25000 | H133: 250 | I133: 2 | J133: 669876.779 | L133: 1.75
A134: Urban | B134: Plains | C134: Minor Collector | D134: R5 | E134: 90 | F134: -1.282 | G134: 8800 | H134: 175 | I134: 2.5
A135: Urban | B135: Mountains | C135: Minor Collector | D135: R5 | E135: 90 | F135: -1.282 | G135: 25000 | H135: 250 | I135: 2.5
A136: Rural | B136: Plains | C136: Minor Collector | D136: R5 | E136: 90 | F136: -1.282 | G136: 8800 | H136: 175 | I136: 2.5 | J136: 271011.4933 | L136: 2.53
A137: Rural | B137: Mountains | C137: Minor Collector | D137: R5 | E137: 90 | F137: -1.282 | G137: 25000 | H137: 250 | I137: 2.5 | J137: 231348.2901 | L137: 1.68
A138: Urban | B138: Plains | C138: Local | D138: R5 | E138: 80 | F138: -0.841 | G138: 8800 | H138: 175 | I138: 2.5
A139: Urban | B139: Mountains | C139: Local | D139: R5 | E139: 80 | F139: -0.841 | G139: 25000 | H139: 250 | I139: 2.5
A140: Rural | B140: Plains | C140: Local | D140: R5 | E140: 80 | F140: -0.841 | G140: 8800 | H140: 175 | I140: 2.5
A141: Rural | B141: Mountains | C141: Local | D141: R5 | E141: 80 | F141: -0.841 | G141: 25000 | H141: 250 | I141: 2.5

Sheet RoadwayCalcs (hidden)
A1: ID | B1: Name | C1: Start MP | D1: End MP | E1: LOC | F1: TOPO | G1: CLASS | H1: REGION | I1: Surface | J1: Length | K1: Width | L1: Lanes | M1: D# | N1: Dev ESALs | O1: Ex SI | P1: Design ESALs | Q1: Ex Yr ESALs | R1: Combo Dev ESALs | S1: Terminal SI | T1: Reliab % | U1: SND ZR | V1: Resilient Modulus | W1: AASHTO Eq. - Ex. | X1: Required SN - Ex. | Y1: Dev AASHTO Eq. - Combo | Z1: Dev Required SN - Combo | AA1: Dev SN Deficiency | AB1: Dev Overlay In. | AC1: Development Improvement $ | AD1: Future Prod ESALs | AE1: Combo Prod ESALs | AF1: Prod AASHTO Eq. - Combo | AG1: Prod Required SN - Combo | AH1: Prod SN Deficiency | AI1: Prod Overlay In. | AJ1: Ft. Production Improvement $ | AK1: Existing Prod ESALs | AL1: Combo Prod ESALs | AM1: Prod AASHTO Eq. - Combo | AN1: Prod Required SN - Combo | AO1: Prod SN Deficiency | AP1: Prod Overlay In. | AQ1: Ex. Production Improvement $
N2: =IF(I2="Asphalt", TruckDistribution!$M$163, IF(I2="Concrete", TruckDistribution!$N$163, 0)) -> 0 | O2: =SUMIF(OtherRoadway!A:A, ROUND(M2, 0), IF(COUNTIF(OtherRoadway!D:D, G2)>0, OtherRoadway!B:B, OtherRoadway!C:C))+IF(ROUND(M2, 0) = 0, S2+0.00001, IF(ROUND(M2, 0) > 10, 4.5, 0)) -> 1e-05 | P2: =SUMIFS(IF(I2="Asphalt", RoadwayConstants!J:J, IF(I2="Concrete", RoadwayConstants!K:K, RoadwayConstants!Z:Z)), RoadwayConstants!A:A, E2, RoadwayConstants!B:B, F2, RoadwayConstants!C:C, G2, RoadwayConstants!D:D, H2) -> 0 | Q2: =P2/20 -> 0 | R2: =Q2+N2 -> 0 | S2: =SUMIFS(RoadwayConstants!I:I, RoadwayConstants!A:A, E2, RoadwayConstants!B:B, F2, RoadwayConstants!C:C, G2, RoadwayConstants!D:D, H2) -> 0 | T2: =SUMIFS(RoadwayConstants!E:E, RoadwayConstants!A:A, E2, RoadwayConstants!B:B, F2, RoadwayConstants!C:C, G2, RoadwayConstants!D:D, H2) -> 0 | U2: =SUMIFS(RoadwayConstants!F:F, RoadwayConstants!A:A, E2, RoadwayConstants!B:B, F2, RoadwayConstants!C:C, G2, RoadwayConstants!D:D, H2) -> 0 | V2: =SUMIFS(RoadwayConstants!G:G, RoadwayConstants!A:A, E2, RoadwayConstants!B:B, F2, RoadwayConstants!C:C, G2, RoadwayConstants!D:D, H2) -> 0 | W2: =LOG10(Q2)-U2*0.44-9.36*LOG10(X2+1)+0.2-(LOG10((O2-S2)/(4.2-1.5))/(0.4+(1094/((X2+1)^5.19))))-2.32*LOG10(V2)+8.07 ->  | Y2: =LOG10(R2)-U2*0.44-9.36*LOG10(Z2+1)+0.2-(LOG10((O2-S2)/(4.2-1.5))/(0.4+(1094/((Z2+1)^5.19))))-2.32*LOG10(V2)+8.07 ->  | AA2: =Z2-X2 -> 0 | AB2: =AA2/0.44 -> 0 | AC2: =ROUNDUP(IF(I2="Asphalt", 0.055*AB2*J2*K2*5280*(1/9)*OtherRoadway!$G$2, IF(I2="Concrete", (N2/P2)*J2*L2*OtherRoadway!$G$3, 0)), -2) -> 0 | AD2: =IF($I2="Asphalt", TruckDistribution!$M$67, IF($I2="Concrete", TruckDistribution!$N$67, 0)) -> 0 | AE2: =AD2+$Q2 -> 0 | AF2: =LOG10(AE2)-U2*0.44-9.36*LOG10(AG2+1)+0.2-(LOG10((O2-S2)/(4.2-1.5))/(0.4+(1094/((AG2+1)^5.19))))-2.32*LOG10(V2)+8.07 ->  | AH2: =AG2-$X2 -> 0 | AI2: =AH2/0.44 -> 0 | AJ2: =ROUNDUP(IF(I2="Asphalt", 0.055*AI2*J2*K2*5280*(1/9)*OtherRoadway!$G$2, IF(I2="Concrete", (AD2/P2)*J2*L2*OtherRoadway!$G$3, 0)), -2) -> 0 | AK2: =IF($I2="Asphalt", TruckDistribution!$M$75, IF($I2="Concrete", TruckDistribution!$N$75, 0)) -> 0 | AL2: =AK2+$Q2 -> 0 | AM2: =LOG10(AL2)-U2*0.44-9.36*LOG10(AN2+1)+0.2-(LOG10((O2-S2)/(4.2-1.5))/(0.4+(1094/((AN2+1)^5.19))))-2.32*LOG10(V2)+8.07 ->  | AO2: =AN2-$X2 -> 0 | AP2: =AO2/0.44 -> 0 | AQ2: =ROUNDUP(IF(I2="Asphalt", 0.055*AP2*J2*K2*5280*(1/9)*OtherRoadway!$G$2, IF(I2="Concrete", (AK2/P2)*J2*L2*OtherRoadway!$G$3, 0)), -2) -> 0
A3: END

Sheet BridgeConstants (hidden)
A1: Deck | B1: Years | C1: $/SF | D1: $/SF/Yr | E1: Joints | F1: Years | G1: $/LF | H1: $/LF/Yr | I1: Bearings | J1: Years | K1: $/Each | L1: $/Each/Yr | M1: Replacement | N1: Years | O1: $/SF | P1: $/SF/Yr
A2: Replacement | B2: =IF(Inputs!G49="No Overlay", 30, 40) -> 40 | C2: 42 | D2: =C2/B2 -> 1.05 | E2: No Joints | F2: 0 | G2: 0 | H2: 0 | I2: No Bearings | J2: 0 | K2: 0 | L2: 0 | M2: Replacement | N2: 75 | O2: 120 | P2: =O2/N2 -> 1.6
A3: HMA/Membrane | B3: 15 | C3: 8 | D3: =C3/B3 -> 0.5333333333 | E3: Plug Joint | F3: 15 | G3: 400 | H3: =G3/F3 -> 26.66666667 | I3: Type 1 | J3: 30 | K3: 5600 | L3: =K3/J3 -> 186.6666667
A4: Polyester | B4: 25 | C4: 16 | D4: =C4/B4 -> 0.64 | E4: 0-4 inch | F4: 15 | G4: 560 | H4: =G4/F4 -> 37.33333333 | I4: Type 2 | J4: 30 | K4: 8000 | L4: =K4/J4 -> 266.6666667
A5: No Overlay | B5: 0 | C5: 0 | D5: 0 | E5: Modular | F5: 25 | G5: 3600 | H5: =G5/F5 -> 144 | I5: Type 3 | J5: 30 | K5: 12000 | L5: =K5/J5 -> 400

Sheet BridgeCalcs (hidden)
A1: ID | B1: Structure # | C1: Facility Carried | D1: Feature Intersected | E1: Baseline ADTT | F1: Width | G1: Length | H1: Overlay | I1: Joint Type | J1: Joints | K1: Skew | L1: Bearing Type | M1: Bearings | N1: Replacement Method | O1: % Increase | P1: Repl. Width | Q1: Repl. Length | R1: Total Deck Area (SF) | S1: Total Joint Length (LF) | T1: Replacement Bridge Area (SF) | U1: Dev O&G Trucks | V1: Dev Trucks/Day | W1: % Dev Impact | X1: Deck Repl. $ | Y1: Deck Overlay $ | Z1: Joints Repl. $ | AA1: Bearings Repl. $ | AB1: Repl. Bridge $ | AC1: Total Bridge $ | AD1: O&G Dev $ | AE1: Ft. Prod O&G Trucks | AF1: Ft. Prod Trucks/Day | AG1: % Ft. Prod Impact | AH1: O&G Ft. Prod $/yr | AI1: Ft. Prod O&G Trucks | AJ1: Ft. Prod Trucks/Day | AK1: % Ft. Prod Impact | AL1: O&G Ft. Prod $/yr
R2: =F2*G2 -> 0 | S2: =J2*F2/COS(K2*PI()/180) -> 0 | T2: =IF(N2="% Increase", R2*(1+O2), P2*Q2) -> 0 | U2: =TruckDistribution!$L$163 -> 12370 | V2: =IF(Inputs!$G$87 = 0, U2/30, U2/Inputs!$G$87) -> 412.3333333 | W2: =IF($E2=0,1,V2/(V2+$E2)) -> 1 | X2: =BridgeConstants!$D$2*R2 -> 0 | Y2: =SUMIF(BridgeConstants!A:A, H2, BridgeConstants!D:D)*R2 -> 0 | Z2: =SUMIF(BridgeConstants!E:E, I2, BridgeConstants!H:H)*S2 -> 0 | AA2: =SUMIF(BridgeConstants!I:I, L2, BridgeConstants!L:L)*M2 -> 0 | AB2: =BridgeConstants!$P$2*T2 -> 0 | AC2: =SUM(X2:AB2) -> 0 | AD2: =ROUND(AC2*W2, -2) -> 0 | AE2: =TruckDistribution!$L$67 -> 560 | AF2: =AE2/365 -> 1.534246575 | AG2: =IF($E2=0,1,AF2/(AF2+$E2)) -> 1 | AH2: =ROUND($AC2*AG2, -2) -> 0 | AI2: =TruckDistribution!$L$75 -> 0 | AJ2: =AI2/365 -> 0 | AK2: =IF($E2=0,1,AJ2/(AJ2+$E2)) -> 1 | AL2: =ROUND($AC2*AK2, -2) -> 0
A3: END

Sheet OtherRoadway (hidden)
A1: # | B1: SI-Maj | C1: SI-Min | D1: Class-Maj | E1: Class-Min | F1: Surface | G1: Cost | H1: Unit
A2: 1 | B2: 2.7 | C2: 3 | D2: Interstate | E2: Minor Collector | F2: Asphalt | G2: 155 | H2: Ton
A3: 2 | B3: 2.7 | C3: 3 | D3: Principal Arterial | E3: Local | F3: Concrete | G3: 572725 | H3: Lane/Mile
A4: 3 | B4: 3.3 | C4: 3.5 | D4: Principal Arterial - Others
A5: 4 | B5: 3.3 | C5: 3.5 | D5: Minor Arterial
A6: 5 | B6: 3.3 | C6: 3.5 | D6: Major Collector
A7: 6 | B7: 3.3 | C7: 3.5
A8: 7 | B8: 3.3 | C8: 3.5
A9: 8 | B9: 3.3 | C9: 3.5
A10: 9 | B10: 4 | C10: 4
A11: 10 | B11: 4 | C11: 4
